Workbook

Sheet Cover
B2: Pastured Based Laying Hens Decision Aid
B10: Purpose: | D10: This decision tool was developed to assist current and potential producers with estimating their costs and returns for a small scale layer enterprise.
B11: Options Evaluated: | D11: The management style options are broken down into two categories: stationary and mobile housing. Beyond that the user has control over production data such as breed, mortality rate, feed intake, forage replacement, etc. The user can enter their own data or use the estimates provided by the budget.
B12: General Instructions: | D12: Cells with blue font can be changed by the user. The sheets are linked internally, when a change is made in one sheet, it will automatically update the others. Be sure to read notes provided to the right of each chart. Cells with red triangles in the upper right hand corner contain comments with more information.
B13: Notes for Specific Sheets
B14: Production Data: | D14: Carefully consider each of the questions provided on this sheet, and select the answer from the drop down list options that best describe your layer enterprise. Be sure to utilize the tables at the bottom of the sheet if you are unsure of what data to enter.
B15: Depreciable Items: | D15: Enter the initial cost for depreciable items, number of items, useful life, and interest rate. If there is an item on the list that you do not utilize, simply enter $0.00 under the Initial Cost. Do not be concerned by rows without any information. These have been appropriately updated depending on the answers provided on the Production Data sheet.
B16: Mobile/Stationary: | D16: This sheet combines all of the data from the previous sheets into a summary that includes the production data, as well as estimated costs and returns. Few changes can be made to this sheet.
B18: For more information, contact:
D19: Samantha Kindred | I19: Greg Halich
D20: Extension Associate | I20: Associate Extension Professor
D21: Samantha.Kindred@uky.edu | I21: Greg.Halich@uky.edu
D22: 859-257-2996 | I22: 859-257-8841
B24: Last Updated 6/10/17

Sheet Production Data
B2: Layer Flock Production Data and Questions
K3: Notes:
B4: Choose a breed of laying hen for your enterprise. (Select one) | H4: Red Sex Linked | K4: Breed can have an effect on egg production, feed intake, mortality rate, forage replacement, etc.
B6: Productive Years per Bird | H6: 1 | K6: This is the number of years the bird is kept for egg laying. If purchased as a chick, this does not include the first few months.
B7: Eggs per Bird, 1st year | H7: 250 | K7: See Table 1 below for estimates on annual egg production.
B8: Average Eggs per Bird per Productive Year | H8: =IF(H6='Drop Box Names'!B4,'Egg Production, Feed Intake'!H11,IF(H6='Drop Box Names'!B5,'Egg Production, Feed Intake'!H12,IF(H6='Drop Box Names'!B6,'Egg Production, Feed Intake'!H13,IF(H6='Drop Box Names'!B7,'Egg Production, Feed Intake'!H14,IF(H6='Drop Box Names'!B8,'Egg Production, Feed Intake'!H15))))) -> 250
B9: Adult Live Weight (lbs) | H9: 6 | K9: See Table 1 below for estimates on adult live weight.
B10: Enter the weeks to productive age: | H10: 18
B11: Enter the months a bird is kept once it reaches productive age | H11: 14
B12: Final age of the bird when culled, in months | H12: =H11+(H10*7/30) -> 18.2
B13: % of potential egg production… | H13: 0.85
E15: % of Eggs | F15: Eggs/Year | G15: Dozens/ Year | H15: Sale Price $/Dozen
B16: Eggs through Wholesale | E16: 0.7 | F16: =G16*12 -> 9725.625 | G16: =IF(H6='Drop Box Names'!B4,'Egg Production, Feed Intake'!J11*E16,IF(H6='Drop Box Names'!B5,'Egg Production, Feed Intake'!M12*E16,IF(H6='Drop Box Names'!B6,AVERAGE('Egg Production, Feed Intake'!J11,'Egg Production, Feed Intake'!J13)*E16,IF(H6='Drop Box Names'!B7,'Egg Production, Feed Intake'!M14*E16,IF(H6='Drop Box Names'!B8,AVERAGE('Egg Production, Feed Intake'!J11,'Egg Production, Feed Intake'!J13,'Egg Production, Feed Intake'!J15)*E16))))) -> 810.46875 | H16: 4
B17: Eggs through Retail | E17: 0.25 | F17: =G17*12 -> 3473.4375 | G17: =IF(H6='Drop Box Names'!B4,'Egg Production, Feed Intake'!J11*E17,IF(H6='Drop Box Names'!B5,'Egg Production, Feed Intake'!M12*E17,IF(H6='Drop Box Names'!B6,AVERAGE('Egg Production, Feed Intake'!J11,'Egg Production, Feed Intake'!J13)*E17,IF(H6='Drop Box Names'!B7,'Egg Production, Feed Intake'!M14*E17,IF(H6='Drop Box Names'!B8,AVERAGE('Egg Production, Feed Intake'!J11,'Egg Production, Feed Intake'!J13,'Egg Production, Feed Intake'!J15)*E17))))) -> 289.453125 | H17: 5
B18: Eggs NOT Sold | E18: =1-E16-E17 -> 0.05 | F18: =G18*12 -> 694.6875 | G18: =IF(H6='Drop Box Names'!B4,'Egg Production, Feed Intake'!J11*E18,IF(H6='Drop Box Names'!B5,'Egg Production, Feed Intake'!M12*E18,IF(H6='Drop Box Names'!B6,AVERAGE('Egg Production, Feed Intake'!J11,'Egg Production, Feed Intake'!J13)*E18,IF(H6='Drop Box Names'!B7,'Egg Production, Feed Intake'!M14*E18,IF(H6='Drop Box Names'!B8,AVERAGE('Egg Production, Feed Intake'!J11,'Egg Production, Feed Intake'!J13,'Egg Production, Feed Intake'!J15)*E18))))) -> 57.890625 | K18: It is recommended to have a small percentage of eggs not sold for eggs that may be cracked, too dirty, or too small, etc.
B19: Total | E19: =SUM(E16:E18) -> 1 | F19: =SUM(F16:F18) -> 13893.75 | G19: =SUM(G16:G18) -> 1157.8125
E21: % of Culls | F21: Birds/Year | G21: Packaged Pounds/Year | H21: $/Live Bird | I21: $/Packaged Pound
B22: Culls Sold Live | E22: 0.6 | F22: =IF(H6='Drop Box Names'!B4,'Egg Production, Feed Intake'!N11*E22/H6,IF(H6='Drop Box Names'!B5,'Egg Production, Feed Intake'!N12*E22/H6,IF(H6='Drop Box Names'!B6,'Egg Production, Feed Intake'!N13*E22/H6,IF(H6='Drop Box Names'!B7,'Egg Production, Feed Intake'!N14*E22/H6,'Egg Production, Feed Intake'!N15*E22/H6)))) -> 32.49 | H22: 5.5 | K22: Culls are undesirable birds removed from the flock and processed, maybe due to age or lack of productivity.
B23: Culls Sold Packaged | E23: 0.3 | F23: =IF(H6='Drop Box Names'!B4,'Egg Production, Feed Intake'!N11*E23/H6,IF(H6='Drop Box Names'!B5,'Egg Production, Feed Intake'!N12*E23/H6,IF(H6='Drop Box Names'!B6,'Egg Production, Feed Intake'!N13*E23/H6,IF(H6='Drop Box Names'!B7,'Egg Production, Feed Intake'!N14*E23/H6,'Egg Production, Feed Intake'!N15*E23/H6)))) -> 16.245 | G23: =IF(H6='Drop Box Names'!B4,'Egg Production, Feed Intake'!N11*Summary!J8*E23/H6,IF(H6='Drop Box Names'!B5,'Egg Production, Feed Intake'!N12*Summary!J8*E23/H6,IF(H6='Drop Box Names'!B6,'Egg Production, Feed Intake'!N13*Summary!J8*E23/H6,IF(H6='Drop Box Names'!B7,'Egg Production, Feed Intake'!N14*Summary!J8*E23/H6,'Egg Production, Feed Intake'!N15*Summary!J8*E23/H6)))) -> 68.229 | I23: 3.5 | K23: This is the cost per packaged pound.
B24: Culls NOT Sold | E24: =1-E22-E23 -> 0.1 | F24: =IF(H6='Drop Box Names'!B4,'Egg Production, Feed Intake'!N11*E24/H6,IF(H6='Drop Box Names'!B5,'Egg Production, Feed Intake'!N12*E24/H6,IF(H6='Drop Box Names'!B6,'Egg Production, Feed Intake'!N13*E24/H6,IF(H6='Drop Box Names'!B7,'Egg Production, Feed Intake'!N14*E24/H6,'Egg Production, Feed Intake'!N15*E24/H6)))) -> 5.415 | K24: These may be culls that are given away as samples, consumed by family, etc..
B25: Total | E25: =SUM(E22:E24) -> 1 | F25: =SUM(F22:F24) -> 54.15
B27: =IF(H28='Drop Box Names'!B29,"How would you like to enter the purchasing and shipping cost of chicks?","How would you like to enter the purchasing and shipping cost of started pullets?") -> How would you like to enter the purchasing and shipping cost of chicks? | H27: Enter Total Cost per Chick
B28: How do you purchase your laying hens? (Select one) | H28: Day Old Chicks | K28: The initial price of chicks is less, however they require more management, infrastructure, and supplies, and are likely to have a higher death rate while taking longer to reach maturity. It is important to weigh the costs and benefits of chicks and pullets depending on the size of your operation.
B30: =IF(H28='Drop Box Names'!B29,"Number of chicks purchased:","Number of started pullets purchased:") -> Number of chicks purchased: | H30: 60
B31: Number of layers to reach productivity: | H31: =IF(H28='Drop Box Names'!B29,H30-H62,H30) -> 57 | K31: This is the number of birds expected to be laying at the start of the first productive year based on mortality rates entered below.
B33: =IF(H28='Drop Box Names'!B29,"Enter the total purchasing and shipping cost for "&H30&" chicks:","Enter the total purchasing and shipping cost for "&H30&" pullets:") -> Enter the total purchasing and shipping cost for 60 chicks: | H33: 150 | I33: 850 | K33: Chicks and pullets can be ordered from www.moyerschicks.com, www.mcmurrayhatchery.com, www.cacklehatchery.com, www.meyerhatchery.com, and other catalogs.
B34: =IF(H28='Drop Box Names'!B29," Total cost per chick:"," Total cost per pullet:") -> Total cost per chick: | H34: =H33/H30 -> 2.5 | I34: =I33/H30 -> 14.16666667 | K34: Shipping cost varies greatly depending on distance, as well as the number and size of the birds. Some hatcheries do not ship, but allow for pick up.
B36: Choose a housing type for your layer enterprise. (Select one) | H36: Mobile | K36: Select the type of housing that best describes your style of management. Stationary housing is less expensive in terms of management inputs, but less flexible with regard to rotation. Mobile housing provides more flexibility with the location, rotation, and forage replacement, but requires more management.
B37: If "Mobile," which housing type is provided? (Select one) | H37: Hoop Houses | K37: =IF(H37='Drop Box Names'!B13,"A hoop house is typically made from a wooden frame and cattle panels.", "A chicken tractor is a coop like structure built onto an axle. ") -> A hoop house is typically made from a wooden frame and cattle panels.
B39: What type of fencing is provided for the hens? (Select one) | H39: Poly Netting
B41: How do you purchase your feed? (Select one) | H41: Ton
B42: =IF(H41='Drop Box Names'!B41," Enter the price of feed per bag:"," Enter the price of feed per ton:") -> Enter the price of feed per ton: | H42: 13.5 | I42: 600 | J42: =IF(H41='Drop Box Names'!B41,H42/H43,I42/2000) -> 0.3 | K42: Because of the volatility of the price of feed and its impact on production costs, please be sure to update this cost.
B43: Enter the pounds per bag: | H43: 50
B45: Enter the total other feed costs and supplements per flock: | H45: 200
B47: Use estimated feed consumption or enter your own? (Select one) | H47: Estimated
H48: Entered | I48: Estimated
B49: How many pounds of feed per bird does it take to reach maturity? | H49: 16 | I49: ='Egg Production, Feed Intake'!E32/'Egg Production, Feed Intake'!E27 -> 14.36842105 | K49: Suggested amount of feed to maturity accounts for the excess birds purchased to reach production goal, as well as death loss.
B50: How many pounds of feed will each bird eat per productive year? | H50: 90 | I50: ='Egg Production, Feed Intake'!I39/'Egg Production, Feed Intake'!E39 -> 83.0375 | K50: Suggested amount of feed per bird per productive year accounts for mortality rate, and is for the first year only.
B51: =IF(H41='Drop Box Names'!B41," Total bags of feed consumed per flock:"," Total tons of feed consumed per flock:") -> Total tons of feed consumed per flock: | H51: =IF(H41='Drop Box Names'!B41,(H49+H50)*H31/H43,(H49+H50)*H31/2000) -> 3.021 | K51: This will be slightly different in the Summary, because the feed intake accounts for forage replacement and mortality rates, entered below.
B54: Use the estimated forage replacement or enter your own? (Select one) | H54: Estimated | K54: Forage replacement is the amount of concentrated feed replaced by pasture, including grasses, legumes, insects, etc.
B55: How often does the flock have access to fresh pasture? | H55: Weekly | K55: The more frequently birds are given access to fresh pasture, the higher percentage of diet replacement.
B56: =IF(H54='Drop Box Names'!B32," Based on breed type and access to fresh pasture, forage replacement is:"," Enter the forage replacement as a percentage of the diet:") -> Based on breed type and access to fresh pasture, forage replacement is: | H56: 0.1 | I56: =IF(H55='Drop Box Names'!B46,IF(C114='Drop Box Names'!B58,C100,C99),IF(H55='Drop Box Names'!B47,IF(C114='Drop Box Names'!B58,D100,D99),IF(H55='Drop Box Names'!B48,IF(C114='Drop Box Names'!B58,'Production Data'!E100,'Production Data'!E99),0))) -> 0.05 | K56: See Table 5 for more information.
B58: How experienced do you consider yourself as a producer? (Select one) | H58: Intermediate | K58: This has the most impact on the mortality rate for chicks and adult birds.
B60: Use estimated mortality rate for pre production age or enter your own? (Select one) | H60: Estimated | K60: This mortality rate is the percentage of the chicks originally purchased.
B61: =IF(H60='Drop Box Names'!B32," Based on experience level and breed the estimated mortality rate is:"," Enter the mortality rate here:") -> Based on experience level and breed the estimated mortality rate is: | H61: 0.1 | I61: =IF(H58='Drop Box Names'!B36,IF(C114='Drop Box Names'!B58,N81,N80),IF(H58='Drop Box Names'!B37,IF(C114='Drop Box Names'!B58,O81,O80),IF(H58='Drop Box Names'!B38,IF(C114='Drop Box Names'!B58,P81,P80)))) -> 0.05 | K61: See Table 3 for more information.
B62: Number of chicks lost in the brooder: | H62: =IF(H60='Drop Box Names'!B33,H30*H61,H30*I61) -> 3
B64: Use estimated adult mortality rate or enter your own? (Select one) | H64: Estimated | K64: This mortality rate is the percentage of the birds that survived the brooder.
B65: =IF(H64='Drop Box Names'!B32," Based on expereince and breed the estimated mortality rate for Year 1 is:"," Enter the mortality rate for Year 1:") -> Based on expereince and breed the estimated mortality rate for Year 1 is: | H65: 0.05 | I65: =IF(C114='Drop Box Names'!B59,IF(H58='Drop Box Names'!B36,C92,IF(H58='Drop Box Names'!B37,F92,I92)),IF(C114='Drop Box Names'!B58,IF(H58='Drop Box Names'!B36,C93,IF(H58='Drop Box Names'!B37,F93,I93)))) -> 0.05 | K65: See Table 4 for more information.
B66: Number of birds lost in Year 1: | H66: =IF(H64='Drop Box Names'!B33,H31*H65,H31*I65) -> 2.85
B68: Would you like to include labor costs in the budget? (Select one) | H68: Yes
B69: =" If you answered "&'Drop Box Names'!B43&" please enter your hourly wage:" -> If you answered Yes please enter your hourly wage: | H69: 10 | K69: Chicks and pullets can be ordered from www.moyerschicks.com, www.mcmurrayhatchery.com, www.cacklehatchery.com, www.meyerhatchery.com, and other catalogs.
B70: Enter the minutes per day of labor spent with the chicks, until production age: | H70: 20 | I70: minutes/day
B71: Enter the minutes per day of labor spent with the production flock: | H71: 20 | I71: minutes/day
B72: Enter the total hours per year spent on marketing: | H72: 10 | I72: hours/year
B74: ="Enter the cost per carton here ("&C129&" dozen):" -> Enter the cost per carton here (1100 dozen): | H74: 0.4 | I74: =H74*Summary!$E$16 -> 439.96875 | K74: You can find the labeling regulations for Kentucky here, http://www.kyagr.com/consumer/documents/RI_EGG_SmallProducerGuide.pdf. If you are not located in KY, please check with your Department of Agriculture.
B75: ="Enter the cost per label here ("&C129&" dozen):" -> Enter the cost per label here (1100 dozen): | H75: 0.03 | I75: =H75*Summary!$E$16 -> 32.99765625 | K75: There are many places online to order cartons, including www.eggcartonstore.com. If your cartons are printed, enter $0.00 for labeling cost.
B78: Table 1: Production Data by Breed | H78: Table 2: Egg Production | M78: Table 3: Mortality Rates (%) Pre-Production Age
B79: Breed | D79: Weeks to Laying Age | E79: First Year Production | F79: Adult Weight (lb) | H79: Years of Production | I79: % of 1st Year's Production | J79: Eggs per Year | N79: Novice | O79: Intermediate | P79: Expert
B80: Australorp | D80: 20-22 | E80: 250-300 | F80: 6.5 | H80: Year 1 | I80: 1 | J80: =H7 -> 250 | M80: Production | N80: 0.15 | O80: 0.1 | P80: 0.05
B81: Barred Plymouth Rock | D81: 22-24 | E81: 200-250 | F81: 7.5 | H81: Year 2 | I81: 0.85 | J81: =J80*I81 -> 212.5 | M81: Dual Purpose | N81: 0.1 | O81: 0.05 | P81: 0.025
B82: Black Sex Linked | D82: 18-20 | E82: 250-300 | F82: 6 | H82: Year 3 | I82: 0.68 | J82: =J80*I82 -> 170 | M82: White Leghorn and ISA Brown are considered production types, and other breeds are dual purpose.
B83: ISA Brown | D83: 18-20 | E83: 300+ | F83: 4.4 | H83: These percentages come from: https://edis.ifas.ufl.edu/PS029#IMAGE PS:PS029F2
B84: Red Sex Linked | D84: 20-22 | E84: 250-300 | F84: 6
B85: White Leghorn | D85: 17-18 | E85: 280-320 | F85: 4.5
B89: Table 4: Mortality Rates (%) Post-Production Age
C90: Novice | F90: Intermediate | I90: Expert
C91: Year 1 | D91: Year 2 | E91: Year 3 | F91: Year 1 | G91: Year 2 | H91: Year 3 | I91: Year 1 | J91: Year 2 | K91: Year 3
B92: Production | C92: 0.1 | D92: 0.15 | E92: 0.2 | F92: 0.075 | G92: 0.1 | H92: 0.15 | I92: 0.05 | J92: 0.075 | K92: 0.1
B93: Dual Purpose | C93: 0.075 | D93: 0.1 | E93: 0.15 | F93: 0.05 | G93: 0.075 | H93: 0.125 | I93: 0.025 | J93: 0.05 | K93: 0.075
B94: White Leghorn and ISA Brown are considered production types, and the other breeds are dual purpose.
B97: Table 5: Forage Replacement (%)
C98: Daily | D98: Biweekly | E98: Weekly
B99: Production | C99: 0.075 | D99: 0.05 | E99: 0.025
B100: Dual Purpose | C100: 0.15 | D100: 0.1 | E100: 0.05
B101: White Leghorn and ISA Brown are considered production types, and other breeds are dual purpose.
K110: have them enter the months until productive age
K111: have them enter the total number of months kept after that
C114: =IF(H4='Drop Box Names'!B21,'Drop Box Names'!B58,IF(H4='Drop Box Names'!B22,'Drop Box Names'!B58,IF(H4='Drop Box Names'!B23,'Drop Box Names'!B58,IF(H4='Drop Box Names'!B24,'Drop Box Names'!B59,IF(H4='Drop Box Names'!B25,'Drop Box Names'!B58,IF(H4='Drop Box Names'!B26,'Drop Box Names'!B59,0)))))) -> Dual Purpose
C115: =IF(H4='Drop Box Names'!B26,'Drop Box Names'!B55,'Drop Box Names'!B54) -> Brown Eggs
C118: Mortality Rate per Year
C119: ='Drop Box Names'!B32 -> Estimated | F119: ='Drop Box Names'!B33 -> My Own
C120: YEAR 1 | D120: YEAR 2 | E120: YEAR 3 | F120: YEAR 1 | G120: YEAR 2 | H120: YEAR 3
C121: =I65 -> 0.05 | D121: =IF(C114='Drop Box Names'!B59,IF(H58='Drop Box Names'!B36,D92,IF(H58='Drop Box Names'!B37,G92,J92)),IF(C114='Drop Box Names'!B58,IF(H58='Drop Box Names'!B36,D93,IF(H58='Drop Box Names'!B37,G93,J93)))) -> 0.075 | E121: =IF(C114='Drop Box Names'!B59,IF(H58='Drop Box Names'!B36,E92,IF(H58='Drop Box Names'!B37,H92,K92)),IF(C114='Drop Box Names'!B58,IF(H58='Drop Box Names'!B36,E93,IF(H58='Drop Box Names'!B37,H93,K93)))) -> 0.125 | F121: =H65 -> 0.05 | G121: =IF(H58='Drop Box Names'!B36,F121*G124,IF(H58='Drop Box Names'!B37,F121*G125,F121*G126)) -> 0.07 | H121: =IF(H58='Drop Box Names'!B36,G121*G124,IF(H58='Drop Box Names'!B37,G121*G125,G121*G126)) -> 0.098 | J121: Should we have a place eventually to have them enter the mortality rate for years past year 1
J122: there is a potential for error here, just because we are making assumptions on the mortality rate for years 2 and 3
F123: Multiplier for mortality rate per year
F124: Novice | G124: 1.5
F125: Intermediate | G125: 1.4
F126: Expert | G126: 1.3
C129: =ROUND(Summary!E16,0) -> 1100 | D129: dozens per year. This cell is used for the egg cartons and labels above, I needed it to round the total dozens, because otherwise a ton of decimal places appeared.
G157: Forage Replacement (%)
H158: Pastured
H159: Not Often
G160: Production | H160: 0.025 | I160: Often | J160: Very Often
G161: Dual Purpose | H161: 0.05 | I161: 0.05 | J161: 0.075
I162: 0.075 | J162: 0.1
B164: Labor (Minutes per Day)
C165: Coop | D165: Pastured
D166: Hoop Houses | E166: Ch. Tractor
B167: Novice | C167: 25 | D167: 45 | E167: 35
B168: Intermediate | C168: 20 | D168: 35 | E168: 25
B169: Expert | C169: 15 | D169: 25 | E169: 20

Sheet Depreciable Items
B2: Depreciable Items for Layers
N3: Notes:
B4: Use the suggested number of items or enter below? | E4: Enter Below
B5: Use the suggested depreciable life or enter below? | E5: Enter Below
B6: Include an interest rate for the depreciable items? | E6: Yes
B7: Interest rate: | E7: 0.03
C9: Cost per Unit | D9: Suggested # of Items | E9: Entered # of Items | F9: % of Use | G9: Total Cost | H9: Suggested Useful Life | I9: Entered Useful Life | J9: Depreciation per Year | K9: Interest Cost per Year | L9: Total Depreciation and Interest per Flock per Year
B10: Larger Depreciable Items | AH10: Interest | AI10: Birds per Item
B11: Brooder | C11: 200 | D11: =ROUNDUP(Summary!$E$5/AI11,0) -> 1 | E11: 1 | F11: 1 | G11: =IF('Production Data'!H28='Drop Box Names'!B30,0,IF($E$4='Drop Box Names'!$B$51,C11*D11*F11,C11*E11*F11)) -> 200 | H11: 5 | I11: 10 | J11: =IF('Production Data'!H28='Drop Box Names'!B30,0,IF($E$5='Drop Box Names'!$B$51,G11/H11,G11/I11)) -> 20 | K11: =IF($E$6='Drop Box Names'!$B$43,IF($E$5='Drop Box Names'!$B$52,-PMT($E$7,I11,G11,0)-J11,-PMT($E$7,H11,G11,0)-J11),0) -> 3.446101321 | L11: =IF('Production Data'!H28='Drop Box Names'!B30,0,J11+K11) -> 23.44610132 | N11: The recommended stocking density for a brooder is 0.25 square feet per chicks | AI11: =Summary!$E$5 -> 57
B12: Coop | C12: 1000 | D12: =ROUNDUP(Summary!$E$5/AI12,0) -> 1 | E12: 1 | F12: 1 | G12: =IF('Production Data'!H36='Drop Box Names'!B11,0,IF($E$4='Drop Box Names'!$B$51,C12*D12*F12,C12*E12*F12)) -> 0 | H12: 15 | I12: 15 | J12: =IF('Production Data'!H33='Drop Box Names'!E9,0,IF($E$5='Drop Box Names'!$B$51,G12/H12,G12/I12)) -> 0 | K12: =IF($E$6='Drop Box Names'!$B$43,IF($E$5='Drop Box Names'!$B$52,-PMT($E$7,I12,G12,0)-J12,-PMT($E$7,H12,G12,0)-J12),0) -> 0 | L12: =IF('Production Data'!H36='Drop Box Names'!B11,0,J12+K12) -> 0 | AI12: =Summary!$E$5 -> 57
B13: Hoop House | C13: 350 | D13: =ROUNDUP(Summary!$E$5/AI13,0) -> 3 | E13: 2 | F13: 1 | G13: =IF('Production Data'!H36='Drop Box Names'!B10,0,IF('Production Data'!H37='Drop Box Names'!B14,0,IF($E$4='Drop Box Names'!$B$51,C13*D13*F13,C13*E13*F13))) -> 700 | H13: 10 | I13: 10 | J13: =IF('Production Data'!H37='Drop Box Names'!B14,0,IF($E$5='Drop Box Names'!$B$51,G13/H13,G13/I13)) -> 70 | K13: =IF($E$6='Drop Box Names'!$B$43,IF($E$5='Drop Box Names'!$B$52,-PMT($E$7,I13,G13,0)-J13,-PMT($E$7,H13,G13,0)-J13),0) -> 12.06135462 | L13: =IF('Production Data'!H36='Drop Box Names'!B10,0,IF('Production Data'!H37='Drop Box Names'!B14,0,J13+K13)) -> 82.06135462 | N13: ="Stocking rate of "&AI13&" layers per hoop house. Construction and details can be found here: http://www2.ca.uky.edu/agc/pubs/ASC/ASC189/ASC189.pdf" -> Stocking rate of 20 layers per hoop house. Construction and details can be found here: http://www2.ca.uky.edu/agc/pubs/ASC/ASC189/ASC189.pdf | AI13: 20
B14: Chicken Tractor | C14: 1500 | D14: =ROUNDUP(Summary!$E$5/AI14,0) -> 1 | E14: 1 | F14: 1 | G14: =IF('Production Data'!H36='Drop Box Names'!B10,0,IF('Production Data'!H37='Drop Box Names'!B13,0,IF($E$4='Drop Box Names'!$B$51,C14*D14*F14,C14*E14*F14))) -> 0 | H14: 10 | I14: 15 | J14: =IF('Production Data'!H37='Drop Box Names'!B13,0,IF($E$5='Drop Box Names'!$B$51,G14/H14,G14/I14)) -> 0 | K14: =IF($E$6='Drop Box Names'!$B$43,IF($E$5='Drop Box Names'!$B$52,-PMT($E$7,I14,G14,0)-J14,-PMT($E$7,H14,G14,0)-J14),0) -> 0 | L14: =IF('Production Data'!H36='Drop Box Names'!B10,0,IF('Production Data'!H37='Drop Box Names'!B13,0,J14+K14)) -> 0 | AI14: =Summary!$E$5 -> 57
B15: Fencing, Wire | C15: 200 | D15: =ROUNDUP(Summary!$E$5/AI15,0) -> 1 | E15: 1 | F15: 1 | G15: =IF('Production Data'!H39='Drop Box Names'!B16,0,IF('Production Data'!H39='Drop Box Names'!B17,0,IF($E$4='Drop Box Names'!$B$51,C15*D15*F15,C15*E15*F15))) -> 0 | H15: 10 | I15: 10 | J15: =IF('Production Data'!H39='Drop Box Names'!B16,0,IF($E$5='Drop Box Names'!$B$51,G15/H15,G15/I15)) -> 0 | K15: =IF($E$6='Drop Box Names'!$B$43,IF($E$5='Drop Box Names'!$B$52,-PMT($E$7,I15,G15,0)-J15,-PMT($E$7,H15,G15,0)-J15),0) -> 0 | L15: =IF('Production Data'!H39='Drop Box Names'!B16,0,IF('Production Data'!H39='Drop Box Names'!B17,0,J15+K15)) -> 0 | AI15: =Summary!$E$5 -> 57
B16: Fencing, Poly Netting Rolls | C16: 170 | D16: =ROUNDUP(Summary!$E$5/AI16,0) -> 1 | E16: 1 | F16: 1 | G16: =IF('Production Data'!H39='Drop Box Names'!B16,0,IF('Production Data'!H39='Drop Box Names'!B18,0,IF($E$4='Drop Box Names'!$B$51,C16*D16*F16,C16*E16*F16))) -> 170 | H16: 7 | I16: 7 | J16: =IF('Production Data'!H39='Drop Box Names'!B16,0,IF($E$5='Drop Box Names'!$B$51,G16/H16,G16/I16)) -> 24.28571429 | K16: =IF($E$6='Drop Box Names'!$B$43,IF($E$5='Drop Box Names'!$B$52,-PMT($E$7,I16,G16,0)-J16,-PMT($E$7,H16,G16,0)-J16),0) -> 3.000365853 | L16: =IF('Production Data'!H39='Drop Box Names'!B16,0,IF('Production Data'!H39='Drop Box Names'!B18,0,J16+K16)) -> 27.28608014 | N16: ="This is strictly for the rolls of poly netting. The stocking rate for a 164 ft roll has been suggested to be "&AI16&" birds per roll. " -> This is strictly for the rolls of poly netting. The stocking rate for a 164 ft roll has been suggested to be 75 birds per roll. | AI16: 75
B17: Fencing Supplies | C17: 150 | D17: =ROUNDUP(Summary!$E$5/AI17,0) -> 1 | E17: 1 | F17: 1 | G17: =IF('Production Data'!H39='Drop Box Names'!B16,0,IF($E$4='Drop Box Names'!$B$51,C17*D17*F17,C17*E17*F17)) -> 150 | H17: 7 | I17: 7 | J17: =IF('Production Data'!H39='Drop Box Names'!B16,0,IF($E$5='Drop Box Names'!$B$51,G17/H17,G17/I17)) -> 21.42857143 | K17: =IF($E$6='Drop Box Names'!$B$43,IF($E$5='Drop Box Names'!$B$52,-PMT($E$7,I17,G17,0)-J17,-PMT($E$7,H17,G17,0)-J17),0) -> 2.647381635 | L17: =IF('Production Data'!H39='Drop Box Names'!B16,0,J17+K17) -> 24.07595306 | N17: This category includes miscellaneous supplies needed for fencing, other than the actual poly netting or chicken wire, such as a charger. | AI17: =Summary!$E$5 -> 57
B18: Feed Bin | C18: 600 | D18: =ROUNDUP(Summary!$E$5/AI18,0) -> 1 | E18: 1 | F18: 1 | G18: =IF('Production Data'!H41='Drop Box Names'!B41,0,IF($E$4='Drop Box Names'!$B$51,C18*D18*F18,C18*E18*F18)) -> 600 | H18: 15 | I18: 15 | J18: =IF('Production Data'!H41='Drop Box Names'!B41,0,IF($E$5='Drop Box Names'!$B$51,G18/H18,G18/I18)) -> 40 | K18: =IF($E$6='Drop Box Names'!$B$43,IF($E$5='Drop Box Names'!$B$52,-PMT($E$7,I18,G18,0)-J18,-PMT($E$7,H18,G18,0)-J18),0) -> 10.25994828 | L18: =IF('Production Data'!H41='Drop Box Names'!B41,0,J18+K18) -> 50.25994828 | N18: As an example, Southern States requires a 3 ton minimum purchase for the feed to be bulk ordered, otherwise it comes in 50 pounds bags. | AI18: =Summary!$E$5 -> 57
B19: Refrigerator | C19: 500 | D19: =ROUNDUP(Summary!$E$5/AI19,0) -> 1 | E19: 0 | F19: 0.5 | G19: =IF('Production Data'!H31<'Drop Box Names'!B66,0,IF($E$4='Drop Box Names'!$B$51,C19*D19*F19,C19*E19*F19)) -> 0 | H19: 15 | I19: 15 | J19: =IF($E$5='Drop Box Names'!$B$51,G19/H19,G19/I19) -> 0 | K19: =IF($E$6='Drop Box Names'!$B$43,IF($E$5='Drop Box Names'!$B$52,-PMT($E$7,I19,G19,0)-J19,-PMT($E$7,H19,G19,0)-J19),0) -> 0 | L19: =IF('Production Data'!H31<'Drop Box Names'!B66,0,J19+K19) -> 0 | AI19: =Summary!$E$5 -> 57
B20: Guardian Dog | C20: 350 | D20: =ROUNDUP(Summary!$E$5/AI20,0) -> 1 | E20: 0 | F20: 0.3 | G20: =IF('Production Data'!H31<'Drop Box Names'!B66,0,IF($E$4='Drop Box Names'!$B$51,C20*D20*F20,C20*E20*F20)) -> 0 | H20: 7 | I20: 7 | J20: =IF($E$5='Drop Box Names'!$B$51,G20/H20,G20/I20) -> 0 | K20: =IF($E$6='Drop Box Names'!$B$43,IF($E$5='Drop Box Names'!$B$52,-PMT($E$7,I20,G20,0)-J20,-PMT($E$7,H20,G20,0)-J20),0) -> 0 | L20: =IF('Production Data'!H31<'Drop Box Names'!B66,0,J20+K20) -> 0 | N20: If you use the dog for other livestock or recreational purposes, you may not want to account for the full cost here. | AI20: =Summary!$E$5 -> 57
B21: Other | C21: 50 | D21: 1 | E21: 0 | F21: 1 | G21: =IF($E$4='Drop Box Names'!$B$51,C21*D21*F21,C21*E21*F21) -> 0 | H21: 7 | I21: 7 | J21: =IF($E$5='Drop Box Names'!$B$51,G21/H21,G21/I21) -> 0 | K21: =IF($E$6='Drop Box Names'!$B$43,IF($E$5='Drop Box Names'!$B$52,-PMT($E$7,I21,G21,0)-J21,-PMT($E$7,H21,G21,0)-J21),0) -> 0 | L21: =J21+K21 -> 0
B22: Total Larger Depreciable Items Cost | J22: =SUM(J11:J21) -> 175.7142857 | K22: =SUM(K11:K21) -> 31.41515171 | L22: =SUM(L11:L21) -> 207.1294374
C24: Cost per Unit | D24: Suggested # of Items | E24: Entered # of Items | F24: % of Use | G24: Total Cost | H24: Suggested Useful Life | I24: Entered Useful Life | J24: Depreciation per Year | K24: Interest Cost per Year | L24: Total Depreciation and Interest per Flock per Year
B25: Smaller Depreciable Items | AH25: Interest | AI25: Birds per Item
B26: Heat Lamps | C26: 15 | D26: =ROUNDUP(Summary!$E$5/AI26,0) -> 1 | E26: 1 | F26: 1 | G26: =IF('Production Data'!H28='Drop Box Names'!B30,0,IF($E$4='Drop Box Names'!$B$51,C26*D26*F26,C26*E26*F26)) -> 15 | H26: 5 | I26: 5 | J26: =IF('Production Data'!H28='Drop Box Names'!B30,0,IF($E$5='Drop Box Names'!$B$51,G26/H26,G26/I26)) -> 3 | K26: =IF($E$6='Drop Box Names'!$B$43,IF($E$5='Drop Box Names'!$B$52,-PMT($E$7,I26*12,G26,0),-PMT($E$7,H26*12,G26,0)),0) -> 0.5419943811 | L26: =IF('Production Data'!H28='Drop Box Names'!B30,0,J26+K26) -> 3.541994381 | N26: ="Assuming a stocking rate of "&AI26&" chicks." -> Assuming a stocking rate of 75 chicks. | AI26: 75
B27: Chick Feeder | C27: 3.1 | D27: =ROUNDUP(Summary!$E$5/AI27,0) -> 3 | E27: 2 | F27: 1 | G27: =IF('Production Data'!H28='Drop Box Names'!B30,0,IF($E$4='Drop Box Names'!$B$51,C27*D27*F27,C27*E27*F27)) -> 6.2 | H27: 3 | I27: 5 | J27: =IF('Production Data'!H28='Drop Box Names'!B30,0,IF($E$5='Drop Box Names'!$B$51,G27/H27,G27/I27)) -> 1.24 | K27: =IF($E$6='Drop Box Names'!$B$43,IF($E$5='Drop Box Names'!$B$52,-PMT($E$7,I27*12,G27,0),-PMT($E$7,H27*12,G27,0)),0) -> 0.2240243442 | L27: =IF('Production Data'!H28='Drop Box Names'!B30,0,J27+K27) -> 1.464024344 | N27: ="Assuming a stocking rate of "&AI27&" chicks." -> Assuming a stocking rate of 25 chicks. | AI27: 25
B28: Chick Waterer | C28: 6.1 | D28: =ROUNDUP(Summary!$E$5/AI28,0) -> 3 | E28: 2 | F28: 1 | G28: =IF('Production Data'!H28='Drop Box Names'!B30,0,IF($E$4='Drop Box Names'!$B$51,C28*D28*F28,C28*E28*F28)) -> 12.2 | H28: 3 | I28: 5 | J28: =IF('Production Data'!H28='Drop Box Names'!B30,0,IF($E$5='Drop Box Names'!$B$51,G28/H28,G28/I28)) -> 2.44 | K28: =IF($E$6='Drop Box Names'!$B$43,IF($E$5='Drop Box Names'!$B$52,-PMT($E$7,I28*12,G28,0),-PMT($E$7,H28*12,G28,0)),0) -> 0.4408220966 | L28: =IF('Production Data'!H28='Drop Box Names'!B30,0,J28+K28) -> 2.880822097 | N28: Assuming a stocking rate of 25 chicks. | AI28: 25
B29: Adult Feeder | C29: 20 | D29: =ROUNDUP(Summary!$E$5/AI29,0) -> 2 | E29: 1 | F29: 1 | G29: =IF($E$4='Drop Box Names'!$B$51,C29*D29*F29,C29*E29*F29) -> 20 | H29: 3 | I29: 5 | J29: =IF($E$5='Drop Box Names'!$B$51,G29/H29,G29/I29) -> 4 | K29: =IF($E$6='Drop Box Names'!$B$43,IF($E$5='Drop Box Names'!$B$52,-PMT($E$7,I29*12,G29,0),-PMT($E$7,H29*12,G29,0)),0) -> 0.7226591748 | L29: =J29+K29 -> 4.722659175 | N29: ="Assuming a stocking rate of "&AI29&" birds." -> Assuming a stocking rate of 50 birds. | AI29: 50
B30: Adult Waterer | C30: 13 | D30: =ROUNDUP(Summary!$E$5/AI30,0) -> 2 | E30: 2 | F30: 1 | G30: =IF($E$4='Drop Box Names'!$B$51,C30*D30*F30,C30*E30*F30) -> 26 | H30: 3 | I30: 5 | J30: =IF($E$5='Drop Box Names'!$B$51,G30/H30,G30/I30) -> 5.2 | K30: =IF($E$6='Drop Box Names'!$B$43,IF($E$5='Drop Box Names'!$B$52,-PMT($E$7,I30*12,G30,0),-PMT($E$7,H30*12,G30,0)),0) -> 0.9394569272 | L30: 6.139456927 | N30: ="Assuming a stocking rate of "&AI30&" birds." -> Assuming a stocking rate of 40 birds. | AI30: 40
B31: Cart | C31: 50 | D31: =ROUNDUP(Summary!$E$5/AI31,0) -> 1 | E31: 1 | F31: 1 | G31: =IF('Production Data'!H36='Drop Box Names'!B10,0,IF($E$4='Drop Box Names'!$B$51,C31*D31*F31,C31*E31*F31)) -> 50 | H31: 5 | I31: 7 | J31: =IF($E$5='Drop Box Names'!$B$51,G31/H31,G31/I31) -> 7.142857143 | K31: =IF($E$6='Drop Box Names'!$B$43,IF($E$5='Drop Box Names'!$B$52,-PMT($E$7,I31*12,G31,0),-PMT($E$7,H31*12,G31,0)),0) -> 1.636656627 | L31: =IF('Production Data'!H36='Drop Box Names'!B10,0,J31+K31) -> 8.77951377 | N31: The cart is for taking feed out to birds, moving fencing supplies, etc. | AI31: =Summary!$E$5 -> 57
B32: Dolly | C32: 75 | D32: =ROUNDUP(Summary!$E$5/AI32,0) -> 1 | E32: 0 | F32: 1 | G32: =IF('Production Data'!H39='Drop Box Names'!B10,0,IF('Production Data'!$H$37='Drop Box Names'!B14,0,IF($E$4='Drop Box Names'!$B$51,C32*D32*F32,C32*E32*F32))) -> 0 | H32: 5 | I32: 5 | J32: =IF('Production Data'!$H$37='Drop Box Names'!B14,0,IF($E$5='Drop Box Names'!$B$51,G32/H32,G32/I32)) -> 0 | K32: =IF($E$6='Drop Box Names'!$B$43,IF($E$5='Drop Box Names'!$B$52,-PMT($E$7,I32*12,G32,0),-PMT($E$7,H32*12,G32,0)),0) -> 0 | L32: =IF('Production Data'!H39='Drop Box Names'!B10,0,IF('Production Data'!$H$37='Drop Box Names'!B14,0,J32+K32)) -> 0 | N32: A dolly is a common method of moving hoop houses. | AI32: =Summary!$E$5 -> 57
B33: Egg Basket | C33: 13 | D33: =ROUNDUP(Summary!$E$5/AI33,0) -> 2 | E33: 1 | F33: 1 | G33: =IF($E$4='Drop Box Names'!$B$51,C33*D33*F33,C33*E33*F33) -> 13 | H33: 3 | I33: 5 | J33: =IF($E$5='Drop Box Names'!$B$51,G33/H33,G33/I33) -> 2.6 | K33: =IF($E$6='Drop Box Names'!$B$43,IF($E$5='Drop Box Names'!$B$52,-PMT($E$7,I33*12,G33,0),-PMT($E$7,H33*12,G33,0)),0) -> 0.4697284636 | L33: 3.069728464 | AI33: 50
B34: Egg Washing Equipment | C34: 12 | D34: =ROUNDUP(Summary!$E$5/AI34,0) -> 1 | E34: 1 | F34: 1 | G34: =IF($E$4='Drop Box Names'!$B$51,C34*D34*F34,C34*E34*F34) -> 12 | H34: 5 | I34: 5 | J34: =IF($E$5='Drop Box Names'!$B$51,G34/H34,G34/I34) -> 2.4 | K34: =IF($E$6='Drop Box Names'!$B$43,IF($E$5='Drop Box Names'!$B$52,-PMT($E$7,I34*12,G34,0),-PMT($E$7,H34*12,G34,0)),0) -> 0.4335955049 | L34: 2.833595505 | N34: You can find a list of egg handling guidelines for Kentucky here, http://www.kyagr.com/consumer/documents/RI_EGG_SmallProducerGuide.pdf. If you are not located in KY, double check with your Department of Agriculture. | AI34: =Summary!$E$5 -> 57
B35: Scale | C35: 20 | D35: =ROUNDUP(Summary!$E$5/AI35,0) -> 1 | E35: 0 | F35: 1 | G35: =IF($E$4='Drop Box Names'!$B$51,C35*D35*F35,C35*E35*F35) -> 0 | H35: 5 | I35: 5 | J35: =IF($E$5='Drop Box Names'!$B$51,G35/H35,G35/I35) -> 0 | K35: =IF($E$6='Drop Box Names'!$B$43,IF($E$5='Drop Box Names'!$B$52,-PMT($E$7,I35*12,G35,0),-PMT($E$7,H35*12,G35,0)),0) -> 0 | L35: 0 | AI35: =Summary!$E$5 -> 57
B36: Marketing Supplies | C36: 100 | D36: =ROUNDUP(Summary!$E$5/AI36,0) -> 1 | E36: 1 | F36: 1 | G36: =IF($E$4='Drop Box Names'!$B$51,C36*D36*F36,C36*E36*F36) -> 100 | H36: 5 | I36: 5 | J36: =IF($E$5='Drop Box Names'!$B$51,G36/H36,G36/I36) -> 20 | K36: =IF($E$6='Drop Box Names'!$B$43,IF($E$5='Drop Box Names'!$B$52,-PMT($E$7,I36*12,G36,0),-PMT($E$7,H36*12,G36,0)),0) -> 3.613295874 | L36: 23.61329587 | N36: This category includes promotional items such as signage, car decals, bags, etc. | AI36: =Summary!$E$5 -> 57
B37: Other | C37: 50 | D37: 1 | E37: 0 | F37: 1 | G37: =IF($E$4='Drop Box Names'!$B$51,C37*D37*F37,C37*E37*F37) -> 0 | H37: 5 | I37: 5 | J37: =IF($E$5='Drop Box Names'!$B$51,G37/H37,G37/I37) -> 0 | K37: =IF($E$6='Drop Box Names'!$B$43,IF($E$5='Drop Box Names'!$B$52,-PMT($E$7,I37*12,G37,0),-PMT($E$7,H37*12,G37,0)),0) -> 0 | L37: =J37+K37 -> 0
B38: Total Smaller Depreciable Items Cost | J38: =SUM(J26:J37) -> 48.02285714 | K38: =SUM(K26:K37) -> 9.022233393 | L38: =SUM(L26:L37) -> 57.04509054
B40: Total Depreciable Costs | L40: =L22+L38 -> 264.174528

Sheet Summary
B2: ="Layer Production Costs and Returns, weighted average for "&E9&" years" -> Layer Production Costs and Returns, weighted average for 1 years
B4: Projected Costs and Returns
C5: Number of Mature Layers | E5: ='Production Data'!H31 -> 57 | G5: Forage Replacement | J5: =IF('Production Data'!H54='Drop Box Names'!B32,'Production Data'!I56,'Production Data'!H56) -> 0.05 | L5: Yearly Egg Production and Profits (in dozens)
C6: Mortality Rate (pre-production) | E6: =IF('Production Data'!H28='Drop Box Names'!B29,IF('Production Data'!H60='Drop Box Names'!B32,'Production Data'!I61,'Production Data'!H61),0) -> 0.05 | G6: Finished Live Weight (lb) | J6: ='Production Data'!H9 -> 6 | M6: Year 1 | N6: Year 2 | O6: Year 3
C7: Mortality Rate, Year 1 (adult) | E7: =IF('Production Data'!H64='Drop Box Names'!B32,'Production Data'!I65,'Production Data'!H65) -> 0.05 | G7: Dressing % | J7: 0.7 | L7: Dozens of Eggs | M7: ='Egg Production, Feed Intake'!J11*(1-J10) -> 1099.921875 | N7: ='Egg Production, Feed Intake'!J13*(1-J10) -> 876.7999023 | O7: ='Egg Production, Feed Intake'!J15*(1-J10) -> 631.9791504
C8: Total Eggs per Bird, Year 1 | E8: ='Production Data'!J80 -> 250 | G8: Packaging Weight (lb) | J8: =J6*J7 -> 4.2 | L8: Revenue | M8: =(M7*$G$16)+J20 -> 5106.637125 | N8: =(N7*$G$16)+J20 -> 4155.432926 | O8: =(O7*$G$16)+J20 -> 3111.723404
C9: Productive Years per Bird | E9: ='Production Data'!H6 -> 1 | G9: % of Culls NOT Sold | J9: ='Production Data'!E24 -> 0.1 | L9: Net Profit | M9: =M8-$J$54 -> 334.7553366 | N9: =N8-$J$54 -> -616.4488626 | O9: =O8-$J$54 -> -1660.158384
C10: Avg Eggs per Bird per Year | E10: =IF($E$9='Drop Box Names'!B4,'Egg Production, Feed Intake'!H11,IF($E$9='Drop Box Names'!B5,'Egg Production, Feed Intake'!H12,IF($E$9='Drop Box Names'!B6,'Egg Production, Feed Intake'!H13,IF($E$9='Drop Box Names'!B7,'Egg Production, Feed Intake'!H14,IF($E$9='Drop Box Names'!B8,'Egg Production, Feed Intake'!H15))))) -> 250 | G10: % of Eggs NOT Sold | J10: ='Production Data'!E18 -> 0.05 | L10: This chart shows the significant effects of decreased egg production and mortality rate on the net profit for each year the hen is kept. See the "comment" above (by hovering your mouse over the title of the table) for more details.
E12: Amount | F12: Unit | G12: Sale Price | H12: % of Product | J12: Revenue/ Flock
B13: Expected Gross Returns per Year
C14: Eggs Sold Wholesale: | E14: =IF(E9='Drop Box Names'!B4,'Egg Production, Feed Intake'!J11*H14,IF(E9='Drop Box Names'!B5,'Egg Production, Feed Intake'!M12*H14,IF(E9='Drop Box Names'!B6,AVERAGE('Egg Production, Feed Intake'!J11,'Egg Production, Feed Intake'!J13)*H14,IF(E9='Drop Box Names'!B7,'Egg Production, Feed Intake'!M14*H14,IF(E9='Drop Box Names'!B8,AVERAGE('Egg Production, Feed Intake'!J11,'Egg Production, Feed Intake'!J13,'Egg Production, Feed Intake'!J15)*H14))))) -> 810.46875 | F14: Dozen | G14: ='Production Data'!H16 -> 4 | H14: ='Production Data'!E16 -> 0.7 | J14: =E14*G14 -> 3241.875
C15: Eggs Sold Retail: | E15: =IF(E9='Drop Box Names'!B4,'Egg Production, Feed Intake'!J11*H15,IF(E9='Drop Box Names'!B5,'Egg Production, Feed Intake'!M12*H15,IF(E9='Drop Box Names'!B6,AVERAGE('Egg Production, Feed Intake'!J11,'Egg Production, Feed Intake'!J13)*H15,IF(E9='Drop Box Names'!B7,'Egg Production, Feed Intake'!M14*H15,IF(E9='Drop Box Names'!B8,AVERAGE('Egg Production, Feed Intake'!J11,'Egg Production, Feed Intake'!J13,'Egg Production, Feed Intake'!J15)*H15))))) -> 289.453125 | F15: Dozen | G15: ='Production Data'!H17 -> 5 | H15: ='Production Data'!E17 -> 0.25 | J15: =E15*G15 -> 1447.265625
C16: Total Eggs Sold: | E16: =SUM(E14:E15) -> 1099.921875 | F16: Dozen | G16: =((G14*E14)+(G15*E15))/E16 -> 4.263157895 | H16: =SUM(H14:H15) -> 0.95 | J16: =SUM(J14:J15) -> 4689.140625
C18: Cull Birds Sold Live: | E18: =IF(E9='Drop Box Names'!B4,'Egg Production, Feed Intake'!N11*H18/E9,IF(E9='Drop Box Names'!B5,'Egg Production, Feed Intake'!N12*H18/E9,IF(E9='Drop Box Names'!B6,'Egg Production, Feed Intake'!N13*H18/E9,IF(E9='Drop Box Names'!B7,'Egg Production, Feed Intake'!N14*H18/E9,'Egg Production, Feed Intake'!N15*H18/E9)))) -> 32.49 | F18: Bird | G18: ='Production Data'!H22 -> 5.5 | H18: ='Production Data'!E22 -> 0.6 | J18: =E18*G18 -> 178.695
C19: Cull Birds Sold Packaged: | E19: =IF(E9='Drop Box Names'!B4,'Egg Production, Feed Intake'!N11*J8*H19/E9,IF(E9='Drop Box Names'!B5,'Egg Production, Feed Intake'!N12*J8*H19/E9,IF(E9='Drop Box Names'!B6,'Egg Production, Feed Intake'!N13*J8*H19/E9,IF(E9='Drop Box Names'!B7,'Egg Production, Feed Intake'!N14*J8*H19/E9,'Egg Production, Feed Intake'!N15*J8*H19/E9)))) -> 68.229 | F19: Pound | G19: ='Production Data'!I23 -> 3.5 | H19: ='Production Data'!E23 -> 0.3 | J19: =E19*G19 -> 238.8015
C20: Total Culls: | E20: =SUM(H18:H19) -> 0.9 | F20: =(E18*J6)+E19 -> 263.169 | G20: Pound | H20: =SUM(H18:H19) -> 0.9 | J20: =SUM(J18:J19) -> 417.4965 | L20: ="This shows the average income from cull birds over "&E9&" years of production. Total revenue will not be availble until the birds are culled." -> This shows the average income from cull birds over 1 years of production. Total revenue will not be availble until the birds are culled.
B22: Total Expected Gross Returns per Year | J22: =J16+J20 -> 5106.637125
E24: Amount | F24: Unit | G24: Cost / Unit | H24: Cost / Dozen Eggs | I24: Cost / Layer | J24: Cost / Flock
B25: Variable Costs per Year
C26: =IF('Production Data'!H28='Drop Box Names'!B30, 'Drop Box Names'!B30, 'Drop Box Names'!B29) -> Day Old Chicks | E26: ='Production Data'!H30 -> 60 | F26: =IF('Production Data'!H28='Drop Box Names'!B29,"chicks","pullets") -> chicks | G26: =IF('Production Data'!H28='Drop Box Names'!B29,'Production Data'!H34,'Production Data'!I34) -> 2.5 | H26: =E26*G26/$E$16 -> 0.136373322 | I26: =E26*G26/$E$5 -> 2.631578947 | J26: =G26*E26 -> 150 | L26: Accounts for shipping cost, death loss in the brooder if applicable, and the number of productive years.
C27: Feed | E27: =IF('Production Data'!H41='Drop Box Names'!B40,C84/2000,C84/'Production Data'!H43) -> 2.637265312 | F27: =IF('Production Data'!H41='Drop Box Names'!B40,"tons/flock","bags/flock") -> tons/flock | G27: =IF('Production Data'!H41='Drop Box Names'!B40,'Production Data'!I42,'Production Data'!H42) -> 600 | H27: =E27*G27/$E$16 -> 1.438610526 | I27: 27.7606875 | J27: =G27*E27 -> 1582.359187 | L27: Accounts for forage replacement, death loss, and feeding the bird to maturity if applicable.
C28: Other Feed/Supplements | E28: 1 | F28: flock | G28: ='Production Data'!H45 -> 200 | H28: =E28*G28/$E$16 -> 0.181831096 | I28: 3.50877193 | J28: =E28*G28 -> 200
C29: Bedding | E29: 2 | F29: bales/flock | G29: 7 | H29: 0.01272817672 | I29: 0.2456140351 | J29: =G29*E29 -> 14
C30: Pasture Management | E30: 1 | F30: flock | G30: 20 | H30: =IF('Production Data'!H36='Drop Box Names'!B10,0,E30*G30/$E$16) -> 0.0181831096 | I30: 0.350877193 | J30: =IF('Production Data'!H36='Drop Box Names'!B10,0,G30*E30) -> 20
C31: Cartons & Labels | E31: 1 | F31: flock | G31: =SUM('Production Data'!I74:I75) -> 472.9664062 | H31: =E31*G31/$E$16 -> 0.43 | I31: 8.29765625 | J31: =G31*E31 -> 472.9664062
C32: Transportation | E32: 1 | F32: flock | G32: 150 | H32: =E32*G32/$E$16 -> 0.136373322 | I32: 2.631578947 | J32: 150 | L32: Account for transportation costs related to marketing and processing here. Remember fuel, maintenance, and other costs.
C33: Processing Culls | E33: ='Production Data'!F23 -> 16.245 | F33: culls/flock | G33: 7 | H33: =E33*G33/$E$16 -> 0.1033846154 | I33: 1.995 | J33: =G33*E33 -> 113.715
C34: Dog Maintenance | E34: =IF('Depreciable Items'!E4='Drop Box Names'!B51,'Depreciable Items'!D20,'Depreciable Items'!E20) -> 0 | F34: flock | G34: 0 | H34: 0 | I34: =E34*G34/$E$5 -> 0 | J34: =IF('Production Data'!H31<'Drop Box Names'!B66,0,G34*E34) -> 0 | L34: Enter the variable costs per year per Livestock Guardian Dog, such as the feed and vet bills.
C35: Maintenance & Repair | E35: 1 | F35: flock | G35: 15 | H35: =E35*G35/$E$16 -> 0.0136373322 | I35: 0.2631578947 | J35: =G35*E35 -> 15
C36: Marketing (not labor) | E36: 1 | F36: flock | G36: 20 | H36: 0.0181831096 | I36: 0.350877193 | J36: 20 | L36: This may include costs such as farmer market or website fees, etc. that are paid on an annual basis.
C37: Chick Labor (hrs) | E37: =IF('Production Data'!H28='Drop Box Names'!B29,IF('Egg Production, Feed Intake'!E23='Drop Box Names'!B61,('Egg Production, Feed Intake'!F19*'Production Data'!H10*7)/60,IF('Egg Production, Feed Intake'!E23='Drop Box Names'!B62,('Egg Production, Feed Intake'!F21*'Production Data'!H10*7)/60,('Egg Production, Feed Intake'!F20*'Production Data'!H10*7)/60)),0) -> 37.8 | F37: hours/flock | G37: =IF('Production Data'!H68='Drop Box Names'!B43,'Production Data'!H69,0) -> 10 | H37: 0.3436607714 | I37: 6.631578947 | J37: 378 | L37: =IF('Production Data'!H68='Drop Box Names'!B44,"Labor is not included. Change in Production Data sheet.","") -> 
C38: Production Labor (hrs) | E38: ='Production Data'!H71*365/60 -> 121.6666667 | F38: hours/flock | G38: =IF('Production Data'!H68='Drop Box Names'!B43,'Production Data'!H69,0) -> 10 | H38: 1.106139167 | I38: 21.34502924 | J38: =G38*E38 -> 1216.666667 | L38: =IF('Production Data'!H68='Drop Box Names'!B44,"Labor is not included. Change in Production Data sheet.","") -> 
C39: Marketing (hrs) | E39: ='Production Data'!H72 -> 10 | F39: hours/flock | G39: =IF('Production Data'!H68='Drop Box Names'!B43,'Production Data'!H69,0) -> 10 | H39: =E39*G39/$E$16 -> 0.09091554798 | I39: 1.754385965 | J39: =G39*E39 -> 100 | L39: =IF('Production Data'!H68='Drop Box Names'!B44,"Labor is not included. Change in Production Data sheet.","") -> 
C40: Transportation Labor (hrs) | F40: hours/flock | I40: 0
C41: Other | E41: 1 | F41: flock | G41: 50 | H41: 0.04545777399 | I41: =E41*G41/$E$5 -> 0.8771929825 | J41: =G41*E41 -> 50
B42: Total Variable Costs per Year | H42: =SUM(H26:H41) -> 4.07547787 | I42: =SUM(I26:I41) -> 78.64398702 | J42: =SUM(J26:J41) -> 4482.70726
B44: Return over Variable Costs | I44: =(J22/E5)-I42 -> 10.94613798 | J44: =J22-J42 -> 623.9298646
E46: Amount | F46: Unit | G46: Cost / Unit | H46: Cost / Dozen Eggs | I46: Cost / Layer | J46: Cost / Flock
B47: Fixed Costs per Year
C48: Larger Depr Items - Facilities | E48: 1 | F48: flock | G48: =SUM('Depreciable Items'!L11:L18) -> 207.1294374 | H48: =(E48*G48)/$E$16 -> 0.1883128631 | I48: =E48*G48/$E$5 -> 3.633849779 | J48: =G48*E48 -> 207.1294374 | L48: Includes housing and fencing; also includes the initial cost of the feed bin if applicable.
C49: Larger Depr Items - Equipment | E49: 1 | F49: flock | G49: =SUM('Depreciable Items'!L19:L21) -> 0 | H49: =(E49*G49)/$E$16 -> 0 | I49: =E49*G49/$E$5 -> 0 | J49: =G49*E49 -> 0 | L49: Refrigerator and initial cost of the Guardian Dog if applicable.
C50: Smaller Depr Items | E50: 1 | F50: flock | G50: =SUM('Depreciable Items'!L26:L37) -> 57.04509054 | H50: =(E50*G50)/$E$16 -> 0.05186285666 | I50: =E50*G50/$E$5 -> 1.000791062 | J50: =G50*E50 -> 57.04509054 | L50: Heat lamps, waterers, feeders, marketing supplies, egg washing equipment, cart, and dolly if applicable.
C51: Other | E51: 1 | F51: flock | G51: 25 | H51: 0.02272888699 | I51: =E51*G51/$E$5 -> 0.4385964912 | J51: 25 | L51: Land costs, insurances, and utilities charges. Check with your state Department of Agriculture to determine the guidelines for being licensed to sell eggs.
B52: Total Fixed Costs per Year | H52: =SUM(H48:H51) -> 0.2629046067 | I52: =SUM(I48:I51) -> 5.073237333 | J52: =SUM(J48:J51) -> 289.174528
B54: Total Fixed and Variable Costs per Year | H54: =H42+H52 -> 4.338382477 | I54: =I42+I52 -> 83.71722436 | J54: =J42+J52 -> 4771.881788
H56: Per Dozen | I56: Per Layer | J56: Per Flock
B57: =IF('Production Data'!H68='Drop Box Names'!B43,"NET PROFIT PER YEAR (including labor)","NET PROFIT PER YEAR (not including labor)") -> NET PROFIT PER YEAR (including labor) | H57: =J57/E16 -> 0.3043446487 | I57: =J57/E5 -> 5.872900643 | J57: =J22-J54 -> 334.7553366 | L57: This net profit includes the revenue from the cull birds.
B59: =IF('Production Data'!H68='Drop Box Names'!B43,"Breakeven Price per Dozen over Variable Costs (including labor)","Breakeven Price per Dozen over Variable Costs (not including labor)") -> Breakeven Price per Dozen over Variable Costs (including labor) | J59: =(J42-J20)/E16 -> 3.695908639 | L59: This includes income from cull birds.
B60: =IF('Production Data'!H68='Drop Box Names'!B43,"Breakeven Price per Dozen over All Costs (including labor)","Breakeven Price per Dozen over All Costs (not including labor)") -> Breakeven Price per Dozen over All Costs (including labor) | J60: =(J54-J20)/E16 -> 3.958813246 | L60: This includes income from cull birds.
E67: Quant. | F67: Unit | G67: Price | H67: Total
B68: Annual Marketing Transportation Costs
C69: Fuel Economy | E69: 18.5 | F69: mpg | L69: Calculated "Other" Costs | Q69: Cents per Mile of "Other" Transportation Costs (2015)
C70: Fuel Economy | E70: 1 | F70: gal | G70: 2.75 | L70: Annual mileage: | N70: 15000 | S70: High | T70: Medium | U70: Low
Q71: Maintenance, Repairs | S71: =T71-(T71*S76) -> 0.04 | T71: 0.05 | U71: =T71+(T71*S76) -> 0.06
C72: Total Miles for Marketing | E72: 1500 | F72: miles/year | N72: Annual Cost | O72: $/Mile | Q72: Tires | S72: =T72-(T72*S76) -> 0.008 | T72: 0.01 | U72: =T72+(T72*S76) -> 0.012
C73: Transportation Labor | E73: 50 | F73: hours/year | G73: =IF('Production Data'!H68='Drop Box Names'!B43,'Production Data'!H69,0) -> 10 | H73: =E73*G73 -> 500 | L73: Maintenance, Repairs | N73: 750 | O73: =N73/N70 -> 0.05 | Q73: Depreciation | S73: =T73-(T73*S76) -> 0.072 | T73: 0.09 | U73: =T73+(T73*S76) -> 0.108
C74: Eggs & Culls % of Annual Sales | E74: 0.3 | L74: Tires | N74: 500 | O74: =N74/N70 -> 0.03333333333 | Q74: Total | S74: =SUM(S71:S73) -> 0.12 | T74: =SUM(T71:T73) -> 0.15 | U74: =SUM(U71:U73) -> 0.18
B75: Costs ($/mile), Annual Marketing Transportation | L75: Depreciation | N75: 1000 | O75: =N75/N70 -> 0.06666666667 | Q75: Source: http://www.lrrb.org/media/reports/200319.pdf, adjusted for 2015 using CPI calculator
C76: Fuel | E76: =E72*E74 -> 450 | F76: mile | G76: =G70/E69 -> 0.1486486486 | H76: =E76*G76 -> 66.89189189 | L76: Total | O76: =SUM(O73:O75) -> 0.15 | Q76: Change by: | S76: 0.2
C77: Labor | E77: =E72*E74 -> 450 | F77: mile | G77: =H73/E72 -> 0.3333333333 | H77: =E77*G77 -> 150
C78: Other | D78: Enter | E78: =E72*E74 -> 450 | F78: mile | G78: 0.17 | H78: =IF(D78='Drop Box Names'!B68,E78*G78,E78*O76) -> 76.5
B79: Total Annual Marketing Transportation Cost | H79: =SUM(H76:H78) -> 293.3918919
C83: =(('Production Data'!H11/2*31*'Production Data'!H71)+('Production Data'!H11/2*30*'Production Data'!H71))/60 -> 142.3333333 | D83: production labor hours if we use the "enter months until culled"system
C84: =IF('Production Data'!H6='Drop Box Names'!B4,'Egg Production, Feed Intake'!K51*(1-J5),IF('Production Data'!H6='Drop Box Names'!B5,'Egg Production, Feed Intake'!K52*(1-J5),IF('Production Data'!H6='Drop Box Names'!B6,'Egg Production, Feed Intake'!K53*(1-J5),IF('Production Data'!H6='Drop Box Names'!B7,'Egg Production, Feed Intake'!K54*(1-J5),'Egg Production, Feed Intake'!K55*(1-J5))))) -> 5274.530625 | D84: pounds per flock of feed intake, accounting for mortality and forage replacement
C85: =IF('Production Data'!H28='Drop Box Names'!B29,('Production Data'!H70*'Production Data'!H10*7)/60,0) -> 42 | D85: chick labor - once I add in the cell where they enter the weeks to productive age

Sheet Egg Production, Feed Intake (hidden)
B2: Egg Production and Feed Consumption
B4: If Buying Chicks | G4: If Buying Started Pullets
C5: Chicks Purchased | E5: ='Production Data'!H30 -> 60 | H5: Pullet purchased | J5: ='Production Data'!H30 -> 60
C6: Mortality Rate, preproduction | E6: =IF('Production Data'!H28='Drop Box Names'!B29,IF('Production Data'!H60='Drop Box Names'!B32,'Production Data'!I61,'Production Data'!H61),0) -> 0.05 | H6: Mortality Rate, preproduction | J6: 0 | L6: Mortality rate for pullets is 0.0% because birds are purchased within a few weeks of produciton age
C7: Birds at productive age | E7: =ROUNDUP((E5*(1-E6)),0) -> 57 | H7: Birds at productive age | J7: =ROUNDUP((J5*(1-J6)),0) -> 60
E9: Number of Layers | F9: Mortality Rate | G9: % of 1st Year Production | H9: Eggs per Bird | I9: Total Eggs | J9: Total Dozens | K9: Eggs 1/2 Year | L9: Dozens 1/2 Year | M9: Average Dozens | N9: Cull Birds
B10: Egg Production
C11: 1 year | E11: =IF('Production Data'!H28='Drop Box Names'!B29,E7,J7) -> 57 | F11: =IF('Production Data'!H64='Drop Box Names'!B32,'Production Data'!I65,'Production Data'!H65) -> 0.05 | G11: 1 | H11: ='Production Data'!H7 -> 250 | I11: =(E11*H11)-((E11*H11)*(F11/2)) -> 13893.75 | J11: =I11/12 -> 1157.8125 | N11: =E11*(1-F11) -> 54.15
C12: 1.5 years | E12: =E11*(1-F11/2) -> 55.575 | H12: =((H11*2)+H13)/3 -> 237.5 | K12: =E12*H12/2 -> 6599.53125 | L12: =K12/12 -> 549.9609375 | M12: =((J11*2)+J13)/3 -> 1079.524089 | N12: =N11*(1-F11/2) -> 52.79625
C13: 2 years | E13: =E11*(1-F11) -> 54.15 | F13: =IF('Production Data'!H64='Drop Box Names'!B32,'Production Data'!D121,'Production Data'!G121) -> 0.075 | G13: ='Production Data'!I81 -> 0.85 | H13: =H11*G13 -> 212.5 | I13: =(E13*H13)-(E13*H13*F13/2) -> 11075.36719 | J13: =I13/12 -> 922.9472656 | M13: =AVERAGE(J11,J13) -> 1040.379883 | N13: =E13*(1-F13) -> 50.08875
C14: 2.5 years | E14: =E13*(1-F13/2) -> 52.119375 | H14: =(H11+H13+(H15/2))/3 -> 182.5 | K14: =E14*H14/2 -> 4755.892969 | L14: =K14/12 -> 396.3244141 | M14: =(J11+J13+(J15/2))/3 -> 804.4601237 | N14: =N13*(1-F13/2) -> 48.21042188
C15: 3 years | E15: =E13*(1-F13) -> 50.08875 | F15: =IF('Production Data'!H64='Drop Box Names'!B32,'Production Data'!E121,'Production Data'!H121) -> 0.125 | G15: ='Production Data'!I82 -> 0.68 | H15: =H11*G15 -> 170 | I15: =(E15*H15)-(E15*H15*F15/2) -> 7982.894531 | J15: =I15/12 -> 665.2412109 | M15: =AVERAGE(J11,J13,J15) -> 915.3336589 | N15: =E15*(1-F15) -> 43.82765625
E17: Lbs of Feed per Bird to Maturity | F17: To X Weeks | G17: Lbs of Feed per Day per Adult | H17: Lbs of Feed per Bird per Productive Year
B18: Feed Consumption (J. Jacobs) | R18: =(3*50)/(30*25) -> 0.2 | S18: =(3.5*50)/(30*25) -> 0.2333333333 | T18: pounds per day
C19: Commercial White Egg Layer | E19: =(7*50)/25 -> 14 | F19: 18 | G19: =AVERAGE(R18:S18) -> 0.2166666667 | H19: =G19*365 -> 79.08333333 | J19: http://www2.ca.uky.edu/agcomm/pubs/asc/asc191/asc191.pdf | R19: =(4*50)/(30*25) -> 0.2666666667 | S19: =(4.5*50)/(30*25) -> 0.3 | T19: pounds per day
C20: Dual Purpose Egg Layer | E20: =(50*9)/25 -> 18 | F20: 20 | G20: =AVERAGE(R19:S19) -> 0.2833333333 | H20: =G20*365 -> 103.4166667 | R20: =(3*50)/(30*25) -> 0.2 | S20: =(4*50)/(30*25) -> 0.2666666667 | T20: pounds per day
C21: Commercial Brown Egg Layer | E21: =(7*50)/25 -> 14 | F21: 18 | G21: =AVERAGE(R20:S20) -> 0.2333333333 | H21: 85.16666667
C23: Type of Layer Chosen: | E23: =IF('Production Data'!H4='Drop Box Names'!B21,'Drop Box Names'!B63,IF('Production Data'!H4='Drop Box Names'!B22,'Drop Box Names'!B63, IF('Production Data'!H4='Drop Box Names'!B23,'Drop Box Names'!B62,IF('Production Data'!H4='Drop Box Names'!B24,'Drop Box Names'!B62,IF('Production Data'!H4='Drop Box Names'!B25,'Drop Box Names'!B62,IF('Production Data'!H4='Drop Box Names'!B26,'Drop Box Names'!B61)))))) -> Commerial Brown Egg Layer | I23: this is based off of the breed chosen on the Production Data sheet
B25: Feed Consumption (Chicks) | E25: Suggested | F25: Entered
C26: Number of Chicks | E26: =E5 -> 60 | F26: =E5 -> 60
C27: Birds 1st "Productive Year" | E27: =E11 -> 57 | F27: =E11 -> 57
C28: Feed to Maturity (lbs) | E28: =IF(E23='Drop Box Names'!B61,E19,IF(E23='Drop Box Names'!B62,E21,E20)) -> 14 | F28: ='Production Data'!H49 -> 16 | H28: pounds of feed it takes to reach laying age
C30: Total Feed/Live Birds | E30: =E27*E28 -> 798 | F30: =F27*F28 -> 912 | G30: lbs
C31: Total Feed/Dead Birds | E31: =(E26-E27)*E28/2 -> 21 | F31: =(F26-F27)*F28/2 -> 24 | G31: lbs | H31: assuming birds die halfway through, most will die sooner.
C32: Total Feed to Maturity | E32: =E30+E31 -> 819 | F32: =F30+F31 -> 936 | G32: lbs | H32: to get the birds to 6 months of age
E37: # of Layers | F37: Mortality Rate | G37: Lbs of Feed per Bird per Day (Suggested) | H37: Lbs of Feed per Flock per 1/2 Year | I37: Lbs of Feed per Flock per Year | K37: Avg Lbs of Feed per Flock per Year | L37: Avg Lbs of Feed per Bird per Year
B38: Suggested Feed Consumption
C39: 1 year | E39: =E27 -> 57 | F39: =F11 -> 0.05 | G39: =IF(E23='Drop Box Names'!B61,G19,IF(E23='Drop Box Names'!B62,G21,G20)) -> 0.2333333333 | I39: =E39*G39*365*(1-F39/2) -> 4733.1375 | K39: =IF('Production Data'!$H$28='Drop Box Names'!$B$29,I39+($E$32/'Production Data'!$H$6),I39) -> 5552.1375 | L39: =K39/E39 -> 97.40592105
C40: 1.5 years | E40: =E39*(1-F39/2) -> 55.575 | F40: =IF('Production Data'!H64='Drop Box Names'!B32,'Production Data'!D121,'Production Data'!G121) -> 0.075 | G40: =G39 -> 0.2333333333 | H40: =E40*G40*(365/2)*(1-F40/2) -> 2277.822422 | J40: =(I39+H40)/1.5 -> 4673.973281 | K40: =IF('Production Data'!$H$28='Drop Box Names'!$B$29,J40+($E$32/'Production Data'!$H$6),J40) -> 5492.973281 | L40: =K40/E40 -> 98.83892544
C41: 2 years | E41: =E39*(1-F39) -> 54.15 | F41: =IF('Production Data'!H64='Drop Box Names'!B32,'Production Data'!D121,'Production Data'!G121) -> 0.075 | G41: =G39 -> 0.2333333333 | I41: =E41*G41*365*(1-F41/2) -> 4438.833437 | J41: =AVERAGE(I39,I41) -> 4585.985469 | K41: =IF('Production Data'!$H$28='Drop Box Names'!$B$29,J41+($E$32/'Production Data'!$H$6),J41) -> 5404.985469 | L41: 99.81505944
C42: 2.5 years | E42: =E41*(1-F41/2) -> 52.119375 | F42: =IF('Production Data'!H64='Drop Box Names'!B32,'Production Data'!E121,'Production Data'!H121) -> 0.125 | G42: =G39 -> 0.2333333333 | H42: =E42*G42*(365/2)*(1-F42/2) -> 2080.703174 | J42: =(I39+I41+H42)/2.5 -> 4501.069645 | K42: =IF('Production Data'!$H$28='Drop Box Names'!$B$29,J42+($E$32/'Production Data'!$H$6),J42) -> 5320.069645 | L42: =K42/E42 -> 102.0747015
C43: 3 years | E43: =E41*(1-F41) -> 50.08875 | F43: =IF('Production Data'!H64='Drop Box Names'!B32,'Production Data'!E121,'Production Data'!H121) -> 0.125 | G43: =G39 -> 0.2333333333 | I43: =E43*G43*365*(1-F43/2) -> 3999.273633 | J43: =AVERAGE(I39,I41,I43) -> 4390.414857 | K43: =IF('Production Data'!$H$28='Drop Box Names'!$B$29,J43+($E$32/'Production Data'!$H$6),J43) -> 5209.414857 | L43: =K43/E43 -> 104.0036906
B44: Entered Feed Consumption
C45: 1 year | E45: =E39 -> 57 | F45: =F39 -> 0.05 | G45: ='Production Data'!H50/365 -> 0.2465753425 | I45: =E45*G45*365*(1-F45/2) -> 5001.75 | K45: =IF('Production Data'!$H$28='Drop Box Names'!$B$29,I45+($E$32/'Production Data'!$H$6),I45) -> 5820.75 | L45: =K45/E45 -> 102.1184211
C46: 1.5 years | E46: =E40 -> 55.575 | F46: 0.075 | G46: ='Production Data'!H50/365 -> 0.2465753425 | H46: =E46*G46*(365/2)*(1-F46/2) -> 2407.092187 | J46: =(I45+H46)/1.5 -> 4939.228125 | K46: =IF('Production Data'!$H$28='Drop Box Names'!$B$29,J46+($E$32/'Production Data'!$H$6),J46) -> 5758.228125 | L46: =K46/E46 -> 103.6118421
C47: 2 years | E47: =E41 -> 54.15 | F47: 0.075 | G47: ='Production Data'!H50/365 -> 0.2465753425 | I47: =E47*G47*365*(1-F47/2) -> 4690.74375 | J47: =AVERAGE(I45,I47) -> 4846.246875 | K47: =IF('Production Data'!$H$28='Drop Box Names'!$B$29,J47+($E$32/'Production Data'!$H$6),J47) -> 5665.246875 | L47: 104.6213643
C48: 2.5 years | E48: =E42 -> 52.119375 | F48: 0.125 | G48: ='Production Data'!H50/365 -> 0.2465753425 | H48: =E48*G48*(365/2)*(1-F48/2) -> 2198.786133 | J48: =(I45+I47+H48)/2.5 -> 4756.511953 | K48: =IF('Production Data'!$H$28='Drop Box Names'!$B$29,J48+($E$32/'Production Data'!$H$6),J48) -> 5575.511953 | L48: 106.9758022
C49: 3 years | E49: =E43 -> 50.08875 | F49: 0.125 | G49: ='Production Data'!H50/365 -> 0.2465753425 | I49: =E49*G49*365*(1-F49/2) -> 4226.238281 | J49: =AVERAGE(I45,I47,I49) -> 4639.577344 | K49: =IF('Production Data'!$H$28='Drop Box Names'!$B$29,J49+($E$32/'Production Data'!$H$6),J49) -> 5458.577344 | L49: 108.9781107
B50: For Summary Sheet
K51: =IF('Production Data'!$H$47='Drop Box Names'!$B$32,K39,K45) -> 5552.1375 | L51: =IF('Production Data'!$H$47='Drop Box Names'!$B$32,L39,L45) -> 97.40592105
K52: =IF('Production Data'!$H$47='Drop Box Names'!$B$32,K40,K46) -> 5492.973281 | L52: =IF('Production Data'!$H$47='Drop Box Names'!$B$32,L40,L46) -> 98.83892544
K53: =IF('Production Data'!$H$47='Drop Box Names'!$B$32,K41,K47) -> 5404.985469 | L53: =IF('Production Data'!$H$47='Drop Box Names'!$B$32,L41,L47) -> 99.81505944
K54: =IF('Production Data'!$H$47='Drop Box Names'!$B$32,K42,K48) -> 5320.069645 | L54: =IF('Production Data'!$H$47='Drop Box Names'!$B$32,L42,L48) -> 102.0747015
K55: =IF('Production Data'!$H$47='Drop Box Names'!$B$32,K43,K49) -> 5209.414857 | L55: =IF('Production Data'!$H$47='Drop Box Names'!$B$32,L43,L49) -> 104.0036906
C60: Australorp | E60: 5/wk | F60: 250-300 | G60: 200-250 | H60: 20-22 | I60: 20 | J60: 250-300 | K60: =5*52 -> 260
C61: Barred Plymouth Rock | E61: 3/wk | F61: 200-280 | G61: 4/wk | H61: 20 | I61: 200-250 | J61: =3*52 -> 156 | K61: =4*52 -> 208 | M61: http://www.eggzy.net/breeds/index/page:6
C62: Black Sex Linked | E62: 6/wk | F62: 200-280 | G62: 250+ | H62: 22-24 | I62: 18 | J62: 250+ | K62: 250-300
C63: ISA Brown | E63: 6/wk | F63: 300+ | G63: 20-22 | H63: =6*52 -> 312
C64: Red Sex Linked | E64: 6/wk | F64: 250+ | G64: 18-20 | H64: 18 | J64: 250+ | K64: 250-300
C65: White Leghorn

Sheet NEW (hidden)
B2: Egg Production and Feed Consumption
B4: If Buying Chicks | G4: If Buying Started Pullets
C5: Chicks Purchased | E5: ='Production Data'!H30 -> 60 | H5: Pullet purchased | J5: ='Production Data'!H30 -> 60
C6: Mortality Rate, preproduction | E6: =IF('Production Data'!H28='Drop Box Names'!B29,IF('Production Data'!H60='Drop Box Names'!B32,'Production Data'!I61,'Production Data'!H61),0) -> 0.05 | H6: Mortality Rate, preproduction | J6: 0 | L6: Mortality rate for pullets is 0.0% because birds are purchased within a few weeks of produciton age
C7: Birds at productive age | E7: =ROUNDUP((E5*(1-E6)),0) -> 57 | H7: Birds at productive age | J7: =ROUNDUP((J5*(1-J6)),0) -> 60
E9: Number of Layers | F9: Mortality Rate | G9: % of 1st Year Production | H9: Eggs per Bird | I9: Total Eggs | J9: Total Dozens | K9: Eggs 1/2 Year | L9: Dozens 1/2 Year | M9: Average Dozens | N9: Cull Birds
B10: Egg Production
C11: 1 year | E11: =IF('Production Data'!H28='Drop Box Names'!B29,E7,J7) -> 57 | F11: =IF('Production Data'!H64='Drop Box Names'!B32,'Production Data'!I65,'Production Data'!H65) -> 0.05 | G11: 1 | H11: ='Production Data'!H7 -> 250 | I11: =(E11*H11)-((E11*H11)*(F11/2)) -> 13893.75 | J11: =I11/12 -> 1157.8125 | N11: =E11*(1-F11) -> 54.15
C12: 1.5 years | E12: =E11*(1-F11/2) -> 55.575 | H12: =((H11*2)+H13)/3 -> 237.5 | K12: =E12*H12/2 -> 6599.53125 | L12: =K12/12 -> 549.9609375 | M12: =((J11*2)+J13)/3 -> 1079.524089 | N12: =N11*(1-F11/2) -> 52.79625
C13: 2 years | E13: =E11*(1-F11) -> 54.15 | F13: =IF('Production Data'!H64='Drop Box Names'!B32,'Production Data'!D121,'Production Data'!G121) -> 0.075 | G13: ='Production Data'!I81 -> 0.85 | H13: =H11*G13 -> 212.5 | I13: =(E13*H13)-(E13*H13*F13/2) -> 11075.36719 | J13: =I13/12 -> 922.9472656 | M13: =AVERAGE(J11,J13) -> 1040.379883 | N13: =E13*(1-F13) -> 50.08875
C14: 2.5 years | E14: =E13*(1-F13/2) -> 52.119375 | H14: =(H11+H13+(H15/2))/3 -> 182.5 | K14: =E14*H14/2 -> 4755.892969 | L14: =K14/12 -> 396.3244141 | M14: =(J11+J13+(J15/2))/3 -> 804.4601237 | N14: =N13*(1-F13/2) -> 48.21042188
C15: 3 years | E15: =E13*(1-F13) -> 50.08875 | F15: =IF('Production Data'!H64='Drop Box Names'!B32,'Production Data'!E121,'Production Data'!H121) -> 0.125 | G15: ='Production Data'!I82 -> 0.68 | H15: =H11*G15 -> 170 | I15: =(E15*H15)-(E15*H15*F15/2) -> 7982.894531 | J15: =I15/12 -> 665.2412109 | M15: =AVERAGE(J11,J13,J15) -> 915.3336589 | N15: =E15*(1-F15) -> 43.82765625
E17: Lbs of Feed per Bird to Maturity | G17: Lbs of Feed per Day per Adult | H17: Lbs of Feed per Bird per Productive Year
B18: Feed Consumption (J. Jacobs) | R18: =(3*50)/(30*25) -> 0.2 | S18: =(3.5*50)/(30*25) -> 0.2333333333 | T18: pounds per day
C19: Commercial White Egg Layer | E19: =(7*50)/25 -> 14 | F19: to 18 weeks | G19: =AVERAGE(R18:S18) -> 0.2166666667 | H19: =G19*365 -> 79.08333333 | J19: http://www2.ca.uky.edu/agcomm/pubs/asc/asc191/asc191.pdf | R19: =(4*50)/(30*25) -> 0.2666666667 | S19: =(4.5*50)/(30*25) -> 0.3 | T19: pounds per day
C20: Dual Purpose Egg Layer | E20: =(50*9)/25 -> 18 | F20: to 20 weeks | G20: =AVERAGE(R19:S19) -> 0.2833333333 | H20: =G20*365 -> 103.4166667 | R20: =(3*50)/(30*25) -> 0.2 | S20: =(4*50)/(30*25) -> 0.2666666667 | T20: pounds per day
C21: Commercial Brown Egg Layer | E21: =(7*50)/25 -> 14 | F21: to 18 weeks | G21: =AVERAGE(R20:S20) -> 0.2333333333 | H21: 85.16666667
C23: Type of Layer Chosen: | E23: =IF('Production Data'!H4='Drop Box Names'!B21,'Drop Box Names'!B63,IF('Production Data'!H4='Drop Box Names'!B22,'Drop Box Names'!B63, IF('Production Data'!H4='Drop Box Names'!B23,'Drop Box Names'!B62,IF('Production Data'!H4='Drop Box Names'!B24,'Drop Box Names'!B62,IF('Production Data'!H4='Drop Box Names'!B25,'Drop Box Names'!B62,IF('Production Data'!H4='Drop Box Names'!B26,'Drop Box Names'!B61)))))) -> Commerial Brown Egg Layer | I23: this is based off of the breed chosen on the Production Data sheet
B27: Feed Consumption (Chicks) | E27: Suggested | F27: Entered
C28: Number of Chicks | E28: =E5 -> 60 | F28: =E5 -> 60
C29: Birds 1st "Productive Year" | E29: =E11 -> 57 | F29: =E11 -> 57
C30: Feed to Maturity (lbs) | E30: =IF(E23='Drop Box Names'!B61,E19,IF(E23='Drop Box Names'!B62,E21,E20)) -> 14 | F30: ='Production Data'!H49 -> 16 | H30: pounds of feed it takes to reach laying age
C32: Total Feed/Live Birds | E32: =E29*E30 -> 798 | F32: =F29*F30 -> 912 | G32: lbs
C33: Total Feed/Dead Birds | E33: =(E28-E29)*E30/2 -> 21 | F33: =(F28-F29)*F30/2 -> 24 | G33: lbs | H33: assuming birds die halfway through, most will die sooner.
C34: Total Feed to Maturity | E34: =E32+E33 -> 819 | F34: =F32+F33 -> 936 | G34: lbs | H34: to get the birds to 6 months of age
B36: Feed Consumption (Adults) | E36: Suggested | F36: Entered
C37: Number of Birds | E37: =IF('Production Data'!H28='Drop Box Names'!B29,E7,J7) -> 57 | F37: =IF('Production Data'!H28='Drop Box Names'!B29,E7,J7) -> 57
C38: Months Kept Laying | E38: ='Production Data'!H11 -> 14 | F38: ='Production Data'!H11 -> 14
C39: Lbs of Feed per Day | E39: =IF(E23='Drop Box Names'!B61,G19,IF(E23='Drop Box Names'!B62,G21,G20)) -> 0.2333333333 | F39: ='Production Data'!H50/(('Production Data'!H9/2*31)+('Production Data'!H9/2*30)) -> 0.4918032787
C40: Pounds Intake per Bird | E40: =(E38/2*30*E39)+(E38/2*31*E39) -> 99.63333333 | F40: ='Production Data'!H50 -> 90
G41: mortality
C42: Mortality Rate | E42: =IF('Production Data'!H64='Drop Box Names'!B32,'Production Data'!I65,'Production Data'!H65) -> 0.05
C45: Pounds Intake per Flock | E45: =E40*E37 -> 5679.1 | F45: =F40*F37 -> 5130
C46: =IF('Production Data'!H41='Drop Box Names'!B40,"Tons per Flock","Bags per Flock") -> Tons per Flock | E46: =IF('Production Data'!H41='Drop Box Names'!B40,E45/2000,E45/'Production Data'!H43) -> 2.83955 | F46: =IF('Production Data'!H41='Drop Box Names'!B40,F45/2000,F45/'Production Data'!H43) -> 2.565
E50: # of Layers | F50: Mortality Rate | G50: Lbs of Feed per Bird per Day (Suggested) | H50: Lbs of Feed per Flock per 1/2 Year | I50: Lbs of Feed per Flock per Year | K50: Avg Lbs of Feed per Flock per Year | L50: Avg Lbs of Feed per Bird per Year
B51: Suggested Feed Consumption
C52: 1 year | E52: =E29 -> 57 | F52: =F11 -> 0.05 | G52: =IF(E23='Drop Box Names'!B61,G19,IF(E23='Drop Box Names'!B62,G21,G20)) -> 0.2333333333 | I52: =E52*G52*365*(1-F52/2) -> 4733.1375 | K52: =IF('Production Data'!$H$28='Drop Box Names'!$B$29,I52+($E$34/'Production Data'!$H$6),I52) -> 5552.1375 | L52: =K52/E52 -> 97.40592105
C53: 1.5 years | E53: =E52*(1-F52/2) -> 55.575 | F53: =IF('Production Data'!H64='Drop Box Names'!B32,'Production Data'!D121,'Production Data'!G121) -> 0.075 | G53: =G52 -> 0.2333333333 | H53: =E53*G53*(365/2)*(1-F53/2) -> 2277.822422 | J53: =(I52+H53)/1.5 -> 4673.973281 | K53: =IF('Production Data'!$H$28='Drop Box Names'!$B$29,J53+($E$34/'Production Data'!$H$6),J53) -> 5492.973281 | L53: =K53/E53 -> 98.83892544
C54: 2 years | E54: =E52*(1-F52) -> 54.15 | F54: =IF('Production Data'!H64='Drop Box Names'!B32,'Production Data'!D121,'Production Data'!G121) -> 0.075 | G54: =G52 -> 0.2333333333 | I54: =E54*G54*365*(1-F54/2) -> 4438.833437 | J54: =AVERAGE(I52,I54) -> 4585.985469 | K54: =IF('Production Data'!$H$28='Drop Box Names'!$B$29,J54+($E$34/'Production Data'!$H$6),J54) -> 5404.985469 | L54: 99.81505944
C55: 2.5 years | E55: =E54*(1-F54/2) -> 52.119375 | F55: =IF('Production Data'!H64='Drop Box Names'!B32,'Production Data'!E121,'Production Data'!H121) -> 0.125 | G55: =G52 -> 0.2333333333 | H55: =E55*G55*(365/2)*(1-F55/2) -> 2080.703174 | J55: =(I52+I54+H55)/2.5 -> 4501.069645 | K55: =IF('Production Data'!$H$28='Drop Box Names'!$B$29,J55+($E$34/'Production Data'!$H$6),J55) -> 5320.069645 | L55: =K55/E55 -> 102.0747015
C56: 3 years | E56: =E54*(1-F54) -> 50.08875 | F56: =IF('Production Data'!H64='Drop Box Names'!B32,'Production Data'!E121,'Production Data'!H121) -> 0.125 | G56: =G52 -> 0.2333333333 | I56: =E56*G56*365*(1-F56/2) -> 3999.273633 | J56: =AVERAGE(I52,I54,I56) -> 4390.414857 | K56: =IF('Production Data'!$H$28='Drop Box Names'!$B$29,J56+($E$34/'Production Data'!$H$6),J56) -> 5209.414857 | L56: =K56/E56 -> 104.0036906
B57: Entered Feed Consumption
C58: 1 year | E58: =E52 -> 57 | F58: =F52 -> 0.05 | G58: ='Production Data'!H50/365 -> 0.2465753425 | I58: =E58*G58*365*(1-F58/2) -> 5001.75 | K58: =IF('Production Data'!$H$28='Drop Box Names'!$B$29,I58+($E$34/'Production Data'!$H$6),I58) -> 5820.75 | L58: =K58/E58 -> 102.1184211
C59: 1.5 years | E59: =E53 -> 55.575 | F59: 0.075 | G59: ='Production Data'!H50/365 -> 0.2465753425 | H59: =E59*G59*(365/2)*(1-F59/2) -> 2407.092187 | J59: =(I58+H59)/1.5 -> 4939.228125 | K59: =IF('Production Data'!$H$28='Drop Box Names'!$B$29,J59+($E$34/'Production Data'!$H$6),J59) -> 5758.228125 | L59: =K59/E59 -> 103.6118421
C60: 2 years | E60: 54.15 | F60: 0.075 | G60: ='Production Data'!H50/365 -> 0.2465753425 | I60: =E60*G60*365*(1-F60/2) -> 4690.74375 | J60: =AVERAGE(I58,I60) -> 4846.246875 | K60: =IF('Production Data'!$H$28='Drop Box Names'!$B$29,J60+($E$34/'Production Data'!$H$6),J60) -> 5665.246875 | L60: 104.6213643
C61: 2.5 years | E61: 52.119375 | F61: 0.125 | G61: ='Production Data'!H50/365 -> 0.2465753425 | H61: =E61*G61*(365/2)*(1-F61/2) -> 2198.786133 | J61: =(I58+I60+H61)/2.5 -> 4756.511953 | K61: =IF('Production Data'!$H$28='Drop Box Names'!$B$29,J61+($E$34/'Production Data'!$H$6),J61) -> 5575.511953 | L61: 106.9758022
C62: 3 years | E62: 50.08875 | F62: 0.125 | G62: ='Production Data'!H50/365 -> 0.2465753425 | I62: =E62*G62*365*(1-F62/2) -> 4226.238281 | J62: =AVERAGE(I58,I60,I62) -> 4639.577344 | K62: =IF('Production Data'!$H$28='Drop Box Names'!$B$29,J62+($E$34/'Production Data'!$H$6),J62) -> 5458.577344 | L62: 108.9781107
B63: For Summary Sheet
K64: =IF('Production Data'!$H$47='Drop Box Names'!$B$32,K52,K58) -> 5552.1375 | L64: =IF('Production Data'!$H$47='Drop Box Names'!$B$32,L52,L58) -> 97.40592105
K65: =IF('Production Data'!$H$47='Drop Box Names'!$B$32,K53,K59) -> 5492.973281 | L65: =IF('Production Data'!$H$47='Drop Box Names'!$B$32,L53,L59) -> 98.83892544
K66: =IF('Production Data'!$H$47='Drop Box Names'!$B$32,K54,K60) -> 5404.985469 | L66: =IF('Production Data'!$H$47='Drop Box Names'!$B$32,L54,L60) -> 99.81505944
K67: =IF('Production Data'!$H$47='Drop Box Names'!$B$32,K55,K61) -> 5320.069645 | L67: =IF('Production Data'!$H$47='Drop Box Names'!$B$32,L55,L61) -> 102.0747015
K68: =IF('Production Data'!$H$47='Drop Box Names'!$B$32,K56,K62) -> 5209.414857 | L68: =IF('Production Data'!$H$47='Drop Box Names'!$B$32,L56,L62) -> 104.0036906
C73: Australorp | E73: 5/wk | F73: 250-300 | G73: 200-250 | H73: 20-22 | I73: 20 | J73: 250-300 | K73: =5*52 -> 260
C74: Barred Plymouth Rock | E74: 3/wk | F74: 200-280 | G74: 4/wk | H74: 20 | I74: 200-250 | J74: =3*52 -> 156 | K74: =4*52 -> 208 | M74: http://www.eggzy.net/breeds/index/page:6
C75: Black Sex Linked | E75: 6/wk | F75: 200-280 | G75: 250+ | H75: 22-24 | I75: 18 | J75: 250+ | K75: 250-300
C76: ISA Brown | E76: 6/wk | F76: 300+ | G76: 20-22 | H76: =6*52 -> 312
C77: Red Sex Linked | E77: 6/wk | F77: 250+ | G77: 18-20 | H77: 18 | J77: 250+ | K77: 250-300
C78: White Leghorn

Sheet Drop Box Names (hidden)
B2: Drop Down List Option | C2: Sheets | D2: Location/Cell | E2: Notes, Reasoning
B4: 1 | C4: Production Data | D4: E5
B5: 1.5
B6: 2
B7: 2.5
B8: 3
B10: Stationary | C10: Production data | D10: H21
B11: Mobile
B13: Hoop Houses | C13: Production Data | D13: H22
B14: Chicken Tractor
B16: None | E16: If "Mobile" the user only gets the option for ply netting or No fencing
B17: Poly Netting | C17: Production Data | D17: H24 | E17: If "Stationary" the user gets all option of fencing
B18: =IF('Production Data'!H36='Drop Box Names'!B10,E18,"-") -> - | E18: Chicken Wire
B19: =IF('Production Data'!H36='Drop Box Names'!B10,E19,"-") -> - | E19: Wire and Netting
B21: Australorp | C21: Production Data | D21: H26
B22: Barred Plymouth Rock
B23: Black Sex Linked
B24: ISA Brown
B25: Red Sex Linked
B26: White Leghorn
B27: Other
B29: Day Old Chicks | C29: Production Data | D29: H28
B30: Started Pullets
B32: Estimated | C32: Production Data | D32: H32
B33: My Own | C33: Production Data | D33: H39
C34: Production Data | D34: H42
B36: Novice | C36: Production Data | D36: H37
B37: Intermediate
B38: Expert
B40: Ton | C40: Production Data | D40: H45
B41: Bag
B43: Yes | C43: Production Data | D43: H53
B44: No | C44: Depreciable Items | D44: E6
B46: Daily | C46: Production Data | D46: H50
B47: Twice per Week
B48: Weekly
B49: Less Frequently
B51: Use Suggested | C51: Depreciable Items | D51: E4
B52: Enter Below | C52: Depreciable Items | D52: E5
B54: Brown Eggs | C54: Production Data | D54: C100
B55: White Eggs
B58: Dual Purpose | C58: Production Data | D58: C99 | E58: This determines the mortality rate pre and post production age, and the forage replacement rate.
B59: Production Type
B61: Commercial White Egg Layer
B62: Commerial Brown Egg Layer
B63: Dual Purpose Layer
B65: Minimum number of birds for refrigerator and guardian | C65: Depreciable Items
B66: 50
B68: Enter
B69: Calculate
B72: Enter Separate Costs
B73: =IF('Production Data'!H4='Drop Box Names'!B29,"Enter Total Cost per Chick","Enter Total Cost per Pullet") -> Enter Total Cost per Pullet
B74: Enter Total Cost per Flock

Sheet Production Q's (hidden)
B2: Need costs for
B3: - Marketing
B4: - Maintenance and repair
B5: - Other, which includes utilites, insurance, interest, etc..
B6: - Pasture Management
B8: What are good estimates for labor?
B9: - Need to include daily chores, egg washing, marketing, maybe transportation?
B11: Do we need to include a transportation category?
B12: - Probably yes… But is it likely that eggs will be transported with another product?
B15: - Get realistic estimates for forage replacement
B16: - Evaluate the best way to apply the forage replacement percentage : Does it affect the feed intake or the ADG more?
D17: - Todd's birds ate the same amount of concentrate, but weighed more at harvest day, with short forage

Sheet Formatting (hidden)
B2: To Do
B4: Give users the ability to change the number (%) of birds culled per year. Right now we are assuming all in, all out.
B5: Include the cost per bird to the summary sheets and depreciable items sheets, if people think it would be helpful.
B8: When Making Changes
B10: If you change the name of any of the options in the drop down boxes, it is CRUCIAL to check all of the related equations.
B11: Sometimes an error message does NOT show up, but if we don't change the cooresponding cells/equations, there will be errors in calculation.
B13: Hidden rows on the production data sheet for forage replacement and labor. Check row 129
B15: Things to include on (future/possible) the egg sheet
B17: The chart about eggs produced 1st year and following years
B18: the labort for harvest, cleaning, packaging and marketing
B19: Do we need in clude transportation?
B20: Include the supplies for eggs, like washing equipment, cartons, labels
B21: Maybe completely show the dozens per year for the whole flock (like in the years sheet)

Sheet Feed Intake (hidden)
A1: Feed consumption for leghorns, production type breed
F2: 25 Replacements | H2: 50 lb bags | I2: Total lbs | J2: Per bird | K2: Per Day
A3: FEED INTAKE CHART | F3: Commercial White (18) | H3: 4 | I3: =H3*50 -> 200 | J3: =I3/25 -> 8 | K3: =7/(18*7) -> 0.05555555556
A4: Age (weeks) | B4: Body Weight | C4: Total Feed Intake | D4: F:G | F4: Commercial Brown (18) | H4: 4 | I4: =H4*50 -> 200 | J4: =I4/25 -> 8 | K4: =8/(18*7) -> 0.06349206349
A5: 0 | B5: 0.08 | C5: 0.11 | D5: =C5/B5 -> 1.375 | F5: Dual purpose (20 wks) | H5: 5 | I5: =H5*50 -> 250 | J5: =I5/25 -> 10 | K5: =9/(20*7) -> 0.06428571429
A6: 2 | B6: 0.22 | C6: 0.42 | D6: 1.909090909
A7: 4 | B7: 0.57 | C7: 0.99 | D7: 1.736842105 | F7: 25 Laying Hens | H7: 50 lb bags | I7: Total lbs | J7: Bird/month | K7: Per Day
A8: 6 | B8: 0.99 | C8: 1.74 | D8: 1.757575758 | F8: Commercial White | H8: 3.5 | I8: =H8*50 -> 175 | J8: =I8/25 -> 7 | K8: =7/30 -> 0.2333333333
A9: 8 | B9: 1.46 | C9: 2.54 | D9: 1.739726027 | F9: Commercial Brown | H9: 4 | I9: =H9*50 -> 200 | J9: =I9/25 -> 8 | K9: =8/30 -> 0.2666666667
A10: 10 | B10: 1.65 | C10: 3.37 | D10: 2.042424242 | F10: Dual purpose | H10: 4.25 | I10: =H10*50 -> 212.5 | J10: =I10/25 -> 8.5 | K10: =8.5/30 -> 0.2833333333
A11: 12 | B11: 2.16 | C11: 4.25 | D11: 1.967592593
A12: 14 | B12: 2.43 | C12: 5.18 | D12: 2.131687243
A13: 16 | B13: 2.69 | C13: 6.13 | D13: 2.278810409
A14: 18 | B14: 3.03 | C14: 7.12 | D14: 2.349834983
A15: 20 | B15: 3.25 | C15: 8.22 | D15: =C15/B15 -> 2.529230769
A17: Age (weeks) | B17: Body Weight | D17: Total Feed Intake
B18: X | C18: X^2 | F18: http://cccfeeds.com/assets/files/Resources/Poultry/Layer_Low_Res_%20RGB_Sept_2009.pdf
A19: 0 | B19: 0.08 | C19: =B19^2 -> 0.0064 | D19: 0.11 | F19: week | G19: weeks ^2 | H19: Weight | I19: weight X^2 | J19: Lbs per week | K19: Total lbs | L19: FC
A20: 1 | B20: 0.15 | C20: =B20^2 -> 0.0225 | D20: 0.265 | F20: 1 | G20: =F20^2 -> 1 | H20: 0.17 | I20: =H20^2 -> 0.0289 | J20: 0.22 | K20: =J20 -> 0.22 | L20: =K20/H20 -> 1.294117647
A21: 2 | B21: 0.22 | C21: 0.0484 | D21: 0.42 | F21: 2 | G21: =F21^2 -> 4 | H21: 0.29 | I21: =H21^2 -> 0.0841 | J21: 0.26 | K21: =SUM($J$20:J21) -> 0.48 | L21: 1.655172414
A22: 3 | B22: 0.395 | C22: 0.156025 | D22: 0.705 | F22: 3 | G22: 9 | H22: 0.45 | I22: 0.2025 | J22: 0.33 | K22: =SUM($J$20:J22) -> 0.81 | L22: 1.8 | M22: to pound of meat.
A23: 4 | B23: 0.57 | C23: 0.3249 | D23: 0.99 | F23: 4 | G23: 16 | H23: 0.65 | I23: 0.4225 | J23: 0.44 | K23: =SUM($J$20:J23) -> 1.25 | L23: 1.923076923 | M23: other FCR for layers use eggs laid
A24: 5 | B24: 0.78 | C24: 0.6084 | D24: 1.365 | F24: 5 | G24: 25 | H24: 0.88 | I24: 0.7744 | J24: 0.6 | K24: =SUM($J$20:J24) -> 1.85 | L24: 2.102272727 | M24: should I change that?
A25: 6 | B25: 0.99 | C25: 0.9801 | D25: 1.74 | F25: 6 | G25: 36 | H25: 1.1 | I25: 1.21 | J25: 0.66 | K25: =SUM($J$20:J25) -> 2.51 | L25: 2.281818182 | M25: I think it should be based on age
A26: 7 | B26: 1.225 | C26: 1.500625 | D26: 2.14 | F26: 7 | G26: 49 | H26: 1.34 | I26: 1.7956 | J26: 0.71 | K26: =SUM($J$20:J26) -> 3.22 | L26: 2.402985075 | M26: birds could reach 200 weeks easy
A27: 8 | B27: 1.46 | C27: 2.1316 | D27: 2.54 | F27: 8 | G27: 64 | H27: 1.58 | I27: 2.4964 | J27: 0.75 | K27: =SUM($J$20:J27) -> 3.97 | L27: 2.512658228
A28: 9 | B28: 1.555 | C28: 2.418025 | D28: 2.955 | F28: 9 | G28: 81 | H28: 1.82 | I28: 3.3124 | J28: 0.82 | K28: =SUM($J$20:J28) -> 4.79 | L28: 2.631868132
A29: 10 | B29: 1.65 | C29: 2.7225 | D29: 3.37 | F29: 10 | G29: 100 | H29: 1.98 | I29: 3.9204 | J29: 0.84 | K29: =SUM($J$20:J29) -> 5.63 | L29: 2.843434343
A30: 11 | B30: 1.905 | C30: 3.629025 | D30: 3.81 | F30: 11 | G30: 121 | H30: 2.17 | I30: 4.7089 | J30: 0.86 | K30: =SUM($J$20:J30) -> 6.49 | L30: 2.99078341
A31: 12 | B31: 2.16 | C31: 4.6656 | D31: 4.25 | F31: 12 | G31: 144 | H31: 2.37 | I31: 5.6169 | J31: 0.88 | K31: =SUM($J$20:J31) -> 7.37 | L31: 3.109704641
A32: 13 | B32: 2.295 | C32: 5.267025 | D32: 4.715 | F32: 13 | G32: 169 | H32: 2.54 | I32: 6.4516 | J32: 0.9 | K32: =SUM($J$20:J32) -> 8.27 | L32: 3.255905512
A33: 14 | B33: 2.43 | C33: 5.9049 | D33: 5.18 | F33: 14 | G33: 196 | H33: 2.64 | I33: 6.9696 | J33: 0.93 | K33: =SUM($J$20:J33) -> 9.2 | L33: 3.484848485
A34: 15 | B34: 2.56 | C34: 6.5536 | D34: 5.655 | F34: 15 | G34: 225 | H34: 2.75 | I34: 7.5625 | J34: 0.95 | K34: =SUM($J$20:J34) -> 10.15 | L34: 3.690909091
A35: 16 | B35: 2.69 | C35: 7.2361 | D35: 6.13 | F35: 16 | G35: 256 | H35: 2.82 | I35: 7.9524 | J35: 0.97 | K35: =SUM($J$20:J35) -> 11.12 | L35: 3.943262411
A36: 17 | B36: 2.86 | C36: 8.1796 | D36: 6.625 | F36: 17 | G36: 289 | H36: 2.89 | I36: 8.3521 | J36: 0.99 | K36: =SUM($J$20:J36) -> 12.11 | L36: 4.190311419
A37: 18 | B37: 3.03 | C37: 9.1809 | D37: 7.12 | F37: 18 | G37: 324 | H37: 2.95 | I37: 8.7025 | J37: 1.01 | K37: =SUM($J$20:J37) -> 13.12 | L37: 4.447457627
A38: 19 | B38: 3.14 | C38: 9.8596 | D38: 7.67 | F38: 20 | G38: 400 | H38: 3.45 | I38: 11.9025 | J38: =O39*4 -> 4.8 | K38: =SUM($J$20:J38) -> 17.92 | L38: 5.194202899 | N38: per day | O38: per week
A39: 20 | B39: 3.25 | C39: 10.5625 | D39: 8.22 | F39: 24 | G39: 576 | H39: 3.66 | I39: 13.3956 | J39: 5.88 | K39: =SUM($J$20:J39) -> 23.8 | L39: 6.50273224 | O39: 1.2
F40: 28 | G40: 784 | H40: 3.7 | I40: 13.69 | J40: 5.88 | K40: =SUM($J$20:J40) -> 29.68 | L40: 8.021621622 | N40: 0.21 | O40: =N40*7 -> 1.47
F41: 32 | G41: 1024 | H41: 3.7 | I41: 13.69 | J41: 5.88 | K41: =SUM($J$20:J41) -> 35.56 | L41: 9.610810811 | N41: 0.21 | O41: 1.47
F42: 36 | G42: 1296 | H42: 3.74 | I42: 13.9876 | J42: 5.6 | K42: =SUM($J$20:J42) -> 41.16 | L42: 11.00534759 | N42: 0.21 | O42: 1.47
F43: 40 | G43: 1600 | H43: 3.8 | I43: 14.44 | J43: 5.6 | K43: =SUM($J$20:J43) -> 46.76 | L43: 12.30526316 | N43: 0.2 | O43: 1.4
F44: 44 | G44: 1936 | H44: 4 | I44: 16 | J44: 6.16 | K44: =SUM($J$20:J44) -> 52.92 | L44: 13.23 | N44: 0.2 | O44: 1.4
F45: 48 | G45: 2304 | H45: 4.08 | I45: 16.6464 | J45: 6.16 | K45: =SUM($J$20:J45) -> 59.08 | L45: 14.48039216 | N45: 0.22 | O45: 1.54
F46: 52 | G46: 2704 | H46: 4.12 | I46: 16.9744 | J46: 6.44 | K46: =SUM($J$20:J46) -> 65.52 | L46: 15.90291262 | N46: 0.22 | O46: 1.54
F47: 56 | G47: 3136 | H47: 4.17 | I47: 17.3889 | J47: 6.72 | K47: =SUM($J$20:J47) -> 72.24 | L47: 17.32374101 | N47: 0.23 | O47: 1.61
F48: 60 | G48: 3600 | H48: 4.16 | I48: 17.3056 | J48: 7.28 | K48: =SUM($J$20:J48) -> 79.52 | L48: 19.11538462 | N48: 0.24 | O48: 1.68
F49: 64 | G49: 4096 | H49: 4.16 | I49: 17.3056 | J49: 7.56 | K49: =SUM($J$20:J49) -> 87.08 | L49: 20.93269231 | N49: 0.26 | O49: 1.82
F50: 68 | G50: 4624 | H50: 4.16 | I50: 17.3056 | J50: 7.84 | K50: =SUM($J$20:J50) -> 94.92 | L50: 22.81730769 | N50: 0.27 | O50: 1.89
N51: 0.28 | O51: 1.96

Sheet Feed Intake Data (hidden)
B3: Body weights and associated feed consumption for a brown-egg laying breed during the growing period
B4: Age (wk) | C4: Body weight (g) | D4: Feed consumption (g/bird/day) | H4: Age (wk) | I4: Body weight (lb) | J4: Feed consumption (lb/bird/day) | K4: Feed cons. per week
B5: 1 | C5: 70 | D5: 13 | F5: grams to pounds | H5: 1 | I5: =C5*$F$6 -> 0.1543234 | J5: =D5*$F$6 -> 0.02866006 | K5: =J5*7 -> 0.20062042
B6: 2 | C6: 115 | D6: 20 | F6: 0.00220462 | H6: 2 | I6: 0.2535313 | J6: 0.0440924 | K6: =J6*7 -> 0.3086468
B7: 3 | C7: 190 | D7: 25 | H7: 3 | I7: 0.4188778 | J7: 0.0551155 | K7: 0.3858085
B8: 4 | C8: 280 | D8: 29 | H8: 4 | I8: 0.6172936 | J8: 0.06393398 | K8: 0.44753786
B9: 5 | C9: 385 | D9: 33 | H9: 5 | I9: 0.8487787 | J9: 0.07275246 | K9: 0.50926722
B10: 6 | C10: 490 | D10: 37 | H10: 6 | I10: 1.0802638 | J10: 0.08157094 | K10: 0.57099658
B11: 7 | C11: 600 | D11: 41 | H11: 7 | I11: 1.322772 | J11: 0.09038942 | K11: 0.63272594
B12: 8 | C12: 710 | D12: 46 | H12: 8 | I12: 1.5652802 | J12: 0.10141252 | K12: 0.70988764
B13: 9 | C13: 810 | D13: 51 | H13: 9 | I13: 1.7857422 | J13: 0.11243562 | K13: 0.78704934
B14: 10 | C14: 870-970 | D14: 56 | H14: 10 | I14: =AVERAGE(O68:P68) -> 2.0282504 | J14: =D14*$F$6 -> 0.12345872 | K14: 0.86421104
B15: 11 | C15: 960-1080 | D15: 61 | H15: 11 | I15: 2.2487124 | J15: 0.13448182 | K15: 0.94137274
B16: 12 | C16: 1050-1117 | D16: 66 | H16: 12 | I16: 2.38870577 | J16: 0.14550492 | K16: 1.01853444
B17: 13 | C17: 1130-1250 | D17: 70 | H17: 13 | I17: 2.6234978 | J17: 0.1543234 | K17: 1.0802638
B18: 14 | C18: 1210-1310 | D18: 73 | H18: 14 | I18: 2.7778212 | J18: 0.16093726 | K18: 1.12656082
B19: 15 | C19: 1290-1370 | D19: 75 | H19: 15 | I19: 2.9321446 | J19: 0.1653465 | K19: 1.1574255
B20: 16 | C20: 1360-1430 | D20: 77 | H20: 16 | I20: 3.0754449 | J20: 0.16975574 | K20: 1.18829018
B21: 17 | C21: 1500-1540 | D21: 80 | H21: 17 | I21: 3.3510224 | J21: 0.1763696 | K21: 1.2345872
B23: http://www.poultryhub.org/nutrition/nutrient-requirements/nutrient-requirements-of-egg-laying-chickens/ | K23: =SUM(K5:K21) -> 13.16378602 | L23: Total feed consumption at 17 weeks
B26: =144/7 -> 20.57142857 | C26: weeks to production age (laying 50% of capacity)
B27: 0.24 | C27: lbs/day food consumption | E27: as an adult, for commercial type birds
B29: http://www.isapoultry.com/en/products/
C32: Leghorns, white egg layers | H32: Dual purpose, brown egg layers
B33: Age | C33: Body Weight (lbs) | D33: Feed (lbs) | E33: Cumulative Feed (lbs) | G33: Age | H33: Body Weight (lbs) | I33: Feed (lbs) | J33: Cumulative Feed (lbs)
B34: 0 | C34: 0.08 | D34: 0.22 | E34: 0.22 | G34: 0 | H34: 0.08 | I34: 0.3 | J34: 0.3 | L34: 25 Replacements | N34: 50 lb bags | O34: Total lbs | P34: Per bird | Q34: Per Day
B35: 2 | C35: 0.22 | D35: 0.62 | E35: 0.84 | G35: 2 | H35: 0.26 | I35: 0.7 | J35: 1 | L35: Commercial White (18) | N35: 4 | O35: =N35*50 -> 200 | P35: =O35/25 -> 8 | Q35: =7/(18*7) -> 0.05555555556
B36: 4 | C36: 0.57 | D36: 1.14 | E36: 1.98 | G36: 4 | H36: 0.72 | I36: 1.24 | J36: 2.24 | L36: Commercial Brown (18) | N36: 4 | O36: =N36*50 -> 200 | P36: =O36/25 -> 8 | Q36: =8/(18*7) -> 0.06349206349
B37: 6 | C37: 0.99 | D37: 1.5 | E37: 3.48 | G37: 6 | H37: 1.1 | I37: 1.54 | J37: 3.78 | L37: Dual purpose (20 wks) | N37: 5 | O37: =N37*50 -> 250 | P37: =O37/25 -> 10 | Q37: =9/(20*7) -> 0.06428571429
B38: 8 | C38: 1.46 | D38: 1.58 | E38: 5.06 | G38: 8 | H38: 1.65 | I38: 1.68 | J38: 5.46
B39: 10 | C39: 1.65 | D39: 1.68 | E39: 6.74 | G39: 10 | H39: 1.98 | I39: 1.76 | J39: 7.22 | L39: 25 Laying Hens | N39: 50 lb bags | O39: Total lbs | P39: Bird/month | Q39: Per Day
B40: 12 | C40: 2.16 | D40: 1.76 | E40: 8.5 | G40: 12 | H40: 2.43 | I40: 1.86 | J40: 9.08 | L40: Commercial White | N40: 3.5 | O40: =N40*50 -> 175 | P40: =O40/25 -> 7 | Q40: =7/30 -> 0.2333333333
B41: 14 | C41: 2.43 | D41: 1.86 | E41: 10.36 | G41: 14 | H41: 2.73 | I41: 1.98 | J41: 11.06 | L41: Commercial Brown | N41: 4 | O41: =N41*50 -> 200 | P41: =O41/25 -> 8 | Q41: =8/30 -> 0.2666666667
B42: 16 | C42: 2.69 | D42: 1.9 | E42: 12.26 | G42: 16 | H42: 3.04 | I42: 2.08 | J42: 13.14 | L42: Dual purpose | N42: 4.25 | O42: =N42*50 -> 212.5 | P42: =O42/25 -> 8.5 | Q42: =8.5/30 -> 0.2833333333
B43: 18 | C43: 3.03 | D43: 1.98 | E43: 14.24 | G43: 18 | H43: 3.31 | I43: 2.2 | J43: 15.34
B44: 20 | C44: 3.25 | D44: 2.2 | E44: 16.44 | G44: 20 | H44: 3.53 | I44: 2.42 | J44: 17.76
B46: http://www2.ca.uky.edu/agc/pubs/ASC/ASC191/ASC191.pdf
B49: 0.25 | C49: per day or | E49: =0.25*7 -> 1.75 | F49: week
B50: 0.3 | C50: per day | E50: =0.25*31 -> 7.75 | F50: month
B51: 1.5 | C51: per week
E52: =0.25*365 -> 91.25 | F52: year
E53: =E52/12 -> 7.604166667 | F53: month
B55: http://animals.mom.me/many-pounds-food-laying-hen-eat-day-5860.html
B58: FEED | C58: PROTEIN LEVEL (%) | D58: AGE OF BIRDS | E58: FEED INTAKE/10 BIRDS/ AGE PERIOD
B59: Chick starter | C59: 20-22 | D59: 0-6 weeks | E59: 20-29 lbs | G59: 24.5 | H59: =G59/10 -> 2.45 | I59: =G59/(10*6) -> 0.4083333333 | J59: per bird per week | K59: =I59/7 -> 0.05833333333 | L59: per bird per day for time period
B60: Pullet grower | C60: 14-16 | D60: 6-20 weeks | E60: 120-130 lbs | G60: 125 | H60: =G60/10 -> 12.5 | I60: =G60/(10*6) -> 2.083333333 | K60: =I60/7 -> 0.2976190476
B61: Layer | C61: 15-18 | D61: 20 weeks on | E61: 18-24 lbs/week | G61: 22 | H61: =G61/10 -> 2.2 | I61: =G61/10 -> 2.2 | K61: =I61/7 -> 0.3142857143 | L61: per bird per day
B62: All purpose* | C62: 16 | D62: All ages | H62: =SUM(H59:H61) -> 17.15 | I62: total feed consumption for bird for 20 weeks
F63: on the LOW side - | H63: 15.8
F64: on the HIGH side - | H64: 18.3
B66: http://www.extension.org/pages/69065/feeding-chickens-for-egg-production#.VjpnyrerTIU
F68: 870 | G68: 970 | O68: =F68*$F$6 -> 1.9180194 | P68: =G68*$F$6 -> 2.1384814
F69: 960 | G69: 1080 | O69: 2.1164352 | P69: 2.3809896
F70: 1050 | G70: 1117 | O70: 2.314851 | P70: 2.46256054
F71: 1130 | G71: 1250 | O71: 2.4912206 | P71: 2.755775
F72: 1210 | G72: 1310 | O72: 2.6675902 | P72: 2.8880522
F73: 1290 | G73: 1370 | O73: 2.8439598 | P73: 3.0203294
F74: 1360 | G74: 1430 | O74: 2.9982832 | P74: 3.1526066
F75: 1500 | G75: 1540 | O75: 3.30693 | P75: 3.3951148
C77: Pullet weights, large egg size birds | J77: expected and measure performance of HyLine W-98
B78: age in weeks | C78: Weight in lbs | D78: Lbs per week | E78: Total consumption lbs | F78: FC | I78: age in weeks | J78: Weight in lbs | K78: Lbs per week | L78: Total consumption lbs | M78: FC
B79: 1 | C79: 0.17 | D79: 0.220462 | E79: 0.220462 | F79: 1.296835294 | I79: 20 | J79: 3.2 | K79: 1.2 | L79: 14.2844197 | M79: 4.463881156
B80: 2 | C80: 0.29 | D80: 0.2645544 | E80: 0.4850164 | F80: 1.672470345 | I80: 24 | J80: 3.44 | K80: 1.470702002 | L80: 15.7551217 | M80: 4.579977239
B81: 3 | C81: 0.45 | D81: 0.3196699 | E81: 0.8046863 | F81: 1.788191778 | I81: 28 | J81: 3.52 | K81: 1.475331704 | L81: 17.23045341 | M81: 4.895015172
B82: 4 | C82: 0.65 | D82: 0.440924 | E82: 1.2456103 | F82: 1.916323538 | I82: 32 | J82: 3.55 | K82: 1.436750854 | L82: 18.66720426 | M82: 5.258367397
B83: 5 | C83: 0.88 | D83: 0.5952474 | E83: 1.8408577 | F83: 2.09188375 | I83: 36 | J83: 3.57 | K83: 1.433664386 | L83: 20.10086865 | M83: 5.630495419
B84: 6 | C84: 1.1 | D84: 0.661386 | E84: 2.5022437 | F84: 2.274767 | I84: 40 | J84: 3.59 | K84: 1.430577918 | L84: 21.53144656 | M84: 5.997617427
B85: 7 | C85: 1.34 | D85: 0.7054784 | E85: 3.2077221 | F85: 2.393822463 | I85: 44 | J85: 3.61 | K85: 1.560209574 | L85: 23.09165614 | M85: 6.396580648
B86: 8 | C86: 1.58 | D86: 0.7495708 | E86: 3.9572929 | F86: 2.504615759 | I86: 48 | J86: 3.63 | K86: 1.561752808 | L86: 24.65340895 | M86: 6.791572712
B87: 9 | C87: 1.82 | D87: 0.8046863 | E87: 4.7619792 | F87: 2.616472088 | I87: 52 | J87: 3.64 | K87: 1.626568636 | L87: 26.27997758 | M87: 7.219774061
B88: 10 | C88: 1.98 | D88: 0.8377556 | E88: 5.5997348 | F88: 2.828148889 | I88: 56 | J88: 3.65 | K88: 1.714532974 | L88: 27.99451056 | M88: 7.669728919
B89: 11 | C89: 2.17 | D89: 0.8487787 | E89: 6.4485135 | F89: 2.971665207 | I89: 60 | J89: 3.66 | K89: 1.83644846 | L89: 29.83095902 | M89: 8.15053525
B90: 12 | C90: 2.37 | D90: 0.881848 | E90: 7.3303615 | F90: 3.092979536 | I90: 64 | J90: 3.67 | K90: 1.887375182 | L90: 31.7183342 | M90: 8.642597874
B91: 13 | C91: 2.54 | D91: 0.9038942 | E91: 8.2342557 | F91: 3.241832953 | I91: 68 | J91: 3.68 | K91: 1.930585734 | L91: 33.64891993 | M91: 9.143728242
B92: 14 | C92: 2.64 | D92: 0.9259404 | E92: 9.1601961 | F92: 3.46977125
B93: 15 | C93: 2.75 | D93: 0.9479866 | E93: 10.1081827 | F93: 3.6757028 | H93: these are definitely commercial type birds, not sure on the exact mix
B94: 16 | C94: 2.82 | D94: 0.9700328 | E94: 11.0782155 | F94: 3.928445213
B95: 17 | C95: 2.89 | D95: 0.992079 | E95: 12.0702945 | F95: 4.176572491
B96: 18 | C96: 2.95 | D96: 1.0141252 | E96: 13.0844197 | F96: 4.435396508
B98: http://www.cccfeeds.com/assets/files/Resources/Poultry/Layer_Low_Res_%20RGB_Sept_2009.pdf
